Workbook

Sheet Main
A3: PRODUCT | B3: Weekly DEMAND | C3: Cost | D3: Inventory | E3: Sales | F3: LT STD DEV | G3: MARGIN OVER COST | H3: Cycle Time (weeks) | I3: ORDER QTY | J3: SS | K3: Column1 | L3: Column2 | M3: Column3 | N3: CURRENT SERVICE LEVEL | O3: SERVICED DEMAND | P3: Serviced (per week) | Q3: CURRENT INVENTORY | R3: f(k) @ new | S3: SS@new | T3: Inventory at NEW | U3: Sales at Current level | V3: Sales at new | W3: INCREMENTAL MARGIN | X3: Inventory Carrying Cost increase | Y3: CONTRIBUTION MARGIN | Z3: DESIRED NEW SERVICE LEVEL | AA3: NEW MARGIN
A4: P 001 | B4: 210.1 | C4: 423.761408 | D4: 763.518 | E4: 182.6992879 | F4: 1 | G4: 0.25 | H4: 2 | I4: =IF(A4="","",H4*B4) -> 420.2 | J4: =IF(A4="","",IF(D4-(I4/2) > 0, D4-(I4/2), 0)) -> 553.418 | K4: =IF(A4="","",SQRT(($H4*POWER(E4,2)) + ((B4^2)*POWER(F4,2)))) -> 333.0166206 | L4: =IF(A4="","",J4/K4) -> 1.661832971 | M4: =IF(A4="","",IF(L4 >3,3,L4)) -> 1.661832971 | N4: =IF(A4="","",1 - (VLOOKUP(M4,'Normal Loss Table (Inverse)'!$A$4:$B$33,2)*K4/I4)) -> 0.9816135516 | O4: =IF(A4="","",B4*N4) -> 206.2370072 | P4: =IF(A4="","",O4*$C4) -> 87395.28455 | Q4: =IF(A4="","",C4*D4) -> 323549.4627 | R4: =IF(A4="","",ROUND((1-$Z4)*(I4/K4),4)) -> 1.2618 | S4: =IF(A4="","",VLOOKUP(R4,'Normal Loss Table'!$A$3:$B$32,2)*K4) -> 0 | T4: =IF(A4="","",I4/2+S4) -> 210.1 | U4: =IF(A4="","",B4*C4*52*N4) -> 4544554.797 | V4: =B4*C4*52*Z4 -> 0 | W4: =IF(A4="","",(V4-U4)*G4) -> -1136138.699 | X4: =IF(A4="","",(T4*C4-Q4)*0.2) -> -46903.43818 | Y4: =IF(A4="","",W4-X4) -> -1089235.261 | Z4: =IF(A4="","",0) -> 0
A5: P 002 | B5: 797.0384615 | C5: 43.818332 | D5: 3945.186 | E5: 408.0402691 | F5: 1 | G5: 0.25 | H5: 2 | I5: 1594.076923 | J5: 3148.147538 | K5: =IF(A5="","",SQRT(($H5*POWER(E5,2)) + ((B5^2)*POWER(1,2)))) -> 984.0040811 | L5: 3.19932366 | M5: 3 | N5: =IF(A5="","",1 - (VLOOKUP(M5,'Normal Loss Table (Inverse)'!$A$4:$B$33,2)*K5/I5)) -> 1 | O5: 797.0384615 | P5: 34924.89592 | Q5: 172871.4699 | R5: 1.62 | S5: =IF(A5="","",VLOOKUP(R5,'Normal Loss Table'!$A$3:$B$32,2)*K5) -> 0 | T5: 797.0384615 | U5: 1816094.588 | V5: 0 | W5: -454023.647 | X5: -27589.31481 | Y5: -426434.3322 | Z5: 0
A6: P 003 | B6: 29.07692308 | C6: 80.92708 | D6: 1716.372 | E6: 52.53377855 | F6: 1 | G6: 0.25 | H6: 2 | I6: 58.15384615 | J6: 1687.295077 | K6: 79.78134639 | L6: 21.14899225 | M6: 3 | N6: =IF(A6="","",1 - (VLOOKUP(M6,'Normal Loss Table (Inverse)'!$A$4:$B$33,2)*K6/I6)) -> 1 | O6: 29.07692308 | P6: 2353.11048 | Q6: 138900.9742 | R6: 0.7289 | S6: =IF(A6="","",VLOOKUP(R6,'Normal Loss Table'!$A$3:$B$32,2)*K6) -> 0 | T6: 29.07692308 | U6: 122361.745 | V6: 0 | W6: -30590.43624 | X6: -27309.57273 | Y6: -3280.863505 | Z6: 0
A7: P 004 | B7: 659.8846154 | C7: 47.489284 | D7: 2941.568 | E7: 279.6128033 | F7: 1 | G7: 0.25 | H7: 2 | I7: 1319.769231 | J7: 2281.683385 | K7: 769.2947063 | L7: 2.965941876 | M7: 2.965941876 | N7: =IF(A7="","",1 - (VLOOKUP(M7,'Normal Loss Table (Inverse)'!$A$4:$B$33,2)*K7/I7)) -> 0.9995919694 | O7: 659.6153622 | P7: 31324.66127 | Q7: 139692.9582 | R7: 1.7156 | S7: =IF(A7="","",VLOOKUP(R7,'Normal Loss Table'!$A$3:$B$32,2)*K7) -> 0 | T7: 659.8846154 | U7: 1628882.386 | V7: 0 | W7: -407220.5965 | X7: -21671.10205 | Y7: -385549.4944 | Z7: 0
A8: P 005 | B8: 1234.153846 | C8: 8.16468 | D8: 13018.908 | E8: 1082.860344 | F8: 1 | G8: 0.25 | H8: 2 | I8: 2468.307692 | J8: 11784.75415 | K8: 1966.801659 | L8: 5.991836594 | M8: 3 | N8: =IF(A8="","",1 - (VLOOKUP(M8,'Normal Loss Table (Inverse)'!$A$4:$B$33,2)*K8/I8)) -> 1 | O8: 1234.153846 | P8: 10076.47122 | Q8: 106295.2178 | R8: 1.255 | S8: =IF(A8="","",VLOOKUP(R8,'Normal Loss Table'!$A$3:$B$32,2)*K8) -> 0 | T8: 1234.153846 | U8: 523976.5037 | V8: 0 | W8: -130994.1259 | X8: -19243.74931 | Y8: -111750.3766 | Z8: 0
A9: P 006 | B9: 719.5769231 | C9: 35.221592 | D9: 3416.28 | E9: 289.4577992 | F9: 1 | G9: 0.25 | H9: 2 | I9: 1439.153846 | J9: 2696.703077 | K9: 827.8662834 | L9: 3.257413825 | M9: 3 | N9: =IF(A9="","",1 - (VLOOKUP(M9,'Normal Loss Table (Inverse)'!$A$4:$B$33,2)*K9/I9)) -> 1 | O9: 719.5769231 | P9: 25344.6448 | Q9: 120326.8203 | R9: 1.7384 | S9: =IF(A9="","",VLOOKUP(R9,'Normal Loss Table'!$A$3:$B$32,2)*K9) -> 0 | T9: 719.5769231 | U9: 1317921.529 | V9: 0 | W9: -329480.3824 | X9: -18996.4351 | Y9: -310483.9473 | Z9: 0
A10: P 007 | B10: 53.44230769 | C10: 31.38192 | D10: 2391.739 | E10: 126.0787823 | F10: 1 | G10: 0.25 | H10: 4 | I10: 213.7692308 | J10: 2284.854385 | K10: 257.7586423 | L10: 8.864317272 | M10: 3 | N10: =IF(A10="","",1 - (VLOOKUP(M10,'Normal Loss Table (Inverse)'!$A$4:$B$33,2)*K10/I10)) -> 1 | O10: 53.44230769 | P10: 1677.122225 | Q10: 75057.36196 | R10: 0.8293 | S10: =IF(A10="","",VLOOKUP(R10,'Normal Loss Table'!$A$3:$B$32,2)*K10) -> 0 | T10: 106.8846154 | U10: 87210.35568 | V10: 0 | W10: -21802.58892 | X10: -14340.6235 | Y10: -7461.965418 | Z10: 0
A11: P 008 | B11: 167.3269231 | C11: 13.50482 | D11: 6612.354 | E11: 478.4972687 | F11: 1 | G11: 0.25 | H11: 4 | I11: 669.3076923 | J11: 6277.700154 | K11: 971.5126575 | L11: 6.461779067 | M11: 3 | N11: =IF(A11="","",1 - (VLOOKUP(M11,'Normal Loss Table (Inverse)'!$A$4:$B$33,2)*K11/I11)) -> 1 | O11: 167.3269231 | P11: 2259.719977 | Q11: 89298.65055 | R11: 0.6889 | S11: =IF(A11="","",VLOOKUP(R11,'Normal Loss Table'!$A$3:$B$32,2)*K11) -> 0 | T11: 334.6538462 | U11: 117505.4388 | V11: 0 | W11: -29376.3597 | X11: -16955.84212 | Y11: -12420.51759 | Z11: 0
A12: P 009 | B12: 643.2115385 | C12: 52.816808 | D12: 2769.725 | E12: 589.1774704 | F12: 1 | G12: 0.25 | H12: 2 | I12: 1286.423077 | J12: 2126.513462 | K12: 1052.606891 | L12: 2.020235171 | M12: 2.020235171 | N12: =IF(A12="","",1 - (VLOOKUP(M12,'Normal Loss Table (Inverse)'!$A$4:$B$33,2)*K12/I12)) -> 0.9939450006 | O12: 639.316893 | P12: 33766.67759 | Q12: 146288.0335 | R12: 1.2221 | S12: =IF(A12="","",VLOOKUP(R12,'Normal Loss Table'!$A$3:$B$32,2)*K12) -> 0 | T12: 643.2115385 | U12: 1755867.235 | V12: 0 | W12: -438966.8086 | X12: -22463.13064 | Y12: -416503.678 | Z12: 0
A13: P 010 | B13: 504.5961538 | C13: 14.44608 | D13: 7925.701 | E13: 447.1952357 | F13: 1 | G13: 0.25 | H13: 2 | I13: 1009.192308 | J13: 7421.104846 | K13: 809.0639258 | L13: 9.172457959 | M13: 3 | N13: =IF(A13="","",1 - (VLOOKUP(M13,'Normal Loss Table (Inverse)'!$A$4:$B$33,2)*K13/I13)) -> 1 | O13: 504.5961538 | P13: 7289.436406 | Q13: 114495.3107 | R13: 1.2474 | S13: =IF(A13="","",VLOOKUP(R13,'Normal Loss Table'!$A$3:$B$32,2)*K13) -> 0 | T13: 504.5961538 | U13: 379050.6931 | V13: 0 | W13: -94762.67328 | X13: -21441.17486 | Y13: -73321.49842 | Z13: 0
A14: P 011 | B14: 63.53846154 | C14: 74.637244 | D14: 2145.465 | E14: 101.350965 | F14: 1 | G14: 0.25 | H14: 2 | I14: 127.0769231 | J14: 2081.926538 | K14: 156.7838394 | L14: 13.27896132 | M14: 3 | N14: =IF(A14="","",1 - (VLOOKUP(M14,'Normal Loss Table (Inverse)'!$A$4:$B$33,2)*K14/I14)) -> 1 | O14: 63.53846154 | P14: 4742.335657 | Q14: 160131.5947 | R14: 0.8105 | S14: =IF(A14="","",VLOOKUP(R14,'Normal Loss Table'!$A$3:$B$32,2)*K14) -> 0 | T14: 63.53846154 | U14: 246601.4542 | V14: 0 | W14: -61650.36354 | X14: -31077.85181 | Y14: -30572.51174 | Z14: 0
A15: P 012 | B15: 1314.173077 | C15: 8.60548 | D15: 9837.24 | E15: 755.1114376 | F15: 1 | G15: 0.25 | H15: 2 | I15: 2628.346154 | J15: 8523.066923 | K15: 1693.350951 | L15: 5.033254872 | M15: 3 | N15: =IF(A15="","",1 - (VLOOKUP(M15,'Normal Loss Table (Inverse)'!$A$4:$B$33,2)*K15/I15)) -> 1 | O15: 1314.173077 | P15: 11309.09013 | Q15: 84654.17208 | R15: 1.5522 | S15: =IF(A15="","",VLOOKUP(R15,'Normal Loss Table'!$A$3:$B$32,2)*K15) -> 0 | T15: 1314.173077 | U15: 588072.6868 | V15: 0 | W15: -147018.1717 | X15: -14669.01639 | Y15: -132349.1553 | Z15: 0
A16: P 013 | B16: 617 | C16: 32.463932 | D16: 3753.449 | E16: 307.9302187 | F16: 1 | G16: 0.25 | H16: 2 | I16: 1234 | J16: 3136.449 | K16: 755.2026478 | L16: 4.153122356 | M16: 3 | N16: =IF(A16="","",1 - (VLOOKUP(M16,'Normal Loss Table (Inverse)'!$A$4:$B$33,2)*K16/I16)) -> 1 | O16: 617 | P16: 20030.24604 | Q16: 121851.7131 | R16: 1.634 | S16: =IF(A16="","",VLOOKUP(R16,'Normal Loss Table'!$A$3:$B$32,2)*K16) -> 0 | T16: 617 | U16: 1041572.794 | V16: 0 | W16: -260393.1986 | X16: -20364.29341 | Y16: -240028.9052 | Z16: 0
A17: P 014 | B17: 61.57692308 | C17: 35.0208 | D17: 2373.56 | E17: 111.2147448 | F17: 1 | G17: 0.25 | H17: 4 | I17: 246.3076923 | J17: 2250.406154 | K17: 230.7955703 | L17: 9.75064708 | M17: 3 | N17: =IF(A17="","",1 - (VLOOKUP(M17,'Normal Loss Table (Inverse)'!$A$4:$B$33,2)*K17/I17)) -> 1 | O17: 61.57692308 | P17: 2156.473108 | Q17: 83123.97005 | R17: 1.0672 | S17: =IF(A17="","",VLOOKUP(R17,'Normal Loss Table'!$A$3:$B$32,2)*K17) -> 0 | T17: 123.1538462 | U17: 112136.6016 | V17: 0 | W17: -28034.1504 | X17: -15762.20477 | Y17: -12271.94563 | Z17: 0
A18: P 015 | B18: 186.8461538 | C18: 34.406112 | D18: 2773.841 | E18: 92.78805379 | F18: 1 | G18: 0.25 | H18: 2 | I18: 373.6923077 | J18: 2586.994846 | K18: 228.3215519 | L18: 11.33048906 | M18: 3 | N18: =IF(A18="","",1 - (VLOOKUP(M18,'Normal Loss Table (Inverse)'!$A$4:$B$33,2)*K18/I18)) -> 1 | O18: 186.8461538 | P18: 6428.649696 | Q18: 95437.08412 | R18: 1.6367 | S18: =IF(A18="","",VLOOKUP(R18,'Normal Loss Table'!$A$3:$B$32,2)*K18) -> 0 | T18: 186.8461538 | U18: 334289.7842 | V18: 0 | W18: -83572.44605 | X18: -17801.68688 | Y18: -65770.75916 | Z18: 0
A19: P 016 | B19: 655.5 | C19: 38.318744 | D19: 2910.355 | E19: 276.6979311 | F19: 1 | G19: 0.25 | H19: 2 | I19: 1311 | J19: 2254.855 | K19: 763.415837 | L19: 2.953639276 | M19: 2.953639276 | N19: =IF(A19="","",1 - (VLOOKUP(M19,'Normal Loss Table (Inverse)'!$A$4:$B$33,2)*K19/I19)) -> 0.999592379 | O19: 655.2328045 | P19: 25107.69809 | Q19: 111521.1482 | R19: 1.7173 | S19: =IF(A19="","",VLOOKUP(R19,'Normal Loss Table'!$A$3:$B$32,2)*K19) -> 0 | T19: 655.5 | U19: 1305600.301 | V19: 0 | W19: -326400.0752 | X19: -17280.6423 | Y19: -309119.4329 | Z19: 0
A20: P 017 | B20: 3120.307692 | C20: 7.600228 | D20: 12895.771 | E20: 1173.245081 | F20: 1 | G20: 0.25 | H20: 2 | I20: 6240.615385 | J20: 9775.463308 | K20: 3534.024354 | L20: 2.766099587 | M20: 2.766099587 | N20: =IF(A20="","",1 - (VLOOKUP(M20,'Normal Loss Table (Inverse)'!$A$4:$B$33,2)*K20/I20)) -> 0.9994337058 | O20: 3118.54068 | P20: 23701.6202 | Q20: 98010.79984 | R20: 1.7659 | S20: =IF(A20="","",VLOOKUP(R20,'Normal Loss Table'!$A$3:$B$32,2)*K20) -> 0 | T20: 3120.307692 | U20: 1232484.25 | V20: 0 | W20: -308121.0626 | X20: -14859.14999 | Y20: -293261.9126 | Z20: 0
A21: P 018 | B21: 405.5769231 | C21: 43.1148 | D21: 983.381 | E21: 160.5475125 | F21: 1 | G21: 0.25 | H21: 2 | I21: 811.1538462 | J21: 577.8040769 | K21: 464.804957 | L21: 1.243110832 | M21: 1.243110832 | N21: =IF(A21="","",1 - (VLOOKUP(M21,'Normal Loss Table (Inverse)'!$A$4:$B$33,2)*K21/I21)) -> 0.9678537454 | O21: 392.539144 | P21: 16924.24669 | Q21: 42398.27514 | R21: 1.7451 | S21: =IF(A21="","",VLOOKUP(R21,'Normal Loss Table'!$A$3:$B$32,2)*K21) -> 0 | T21: 405.5769231 | U21: 880060.8277 | V21: 0 | W21: -220015.2069 | X21: -4982.381443 | Y21: -215032.8255 | Z21: 0
A22: P 019 | B22: 255.5384615 | C22: 19.72656 | D22: 4474.778 | E22: 263.326418 | F22: 1 | G22: 0.25 | H22: 2 | I22: 511.0769231 | J22: 4219.239538 | K22: 451.6431226 | L22: 9.341976724 | M22: 3 | N22: =IF(A22="","",1 - (VLOOKUP(M22,'Normal Loss Table (Inverse)'!$A$4:$B$33,2)*K22/I22)) -> 1 | O22: 255.5384615 | P22: 5040.894794 | Q22: 88271.9767 | R22: 1.1316 | S22: =IF(A22="","",VLOOKUP(R22,'Normal Loss Table'!$A$3:$B$32,2)*K22) -> 0 | T22: 255.5384615 | U22: 262126.5293 | V22: 0 | W22: -65531.63232 | X22: -16646.21638 | Y22: -48885.41594 | Z22: 0
A23: P 020 | B23: 85.19230769 | C23: 144.075556 | D23: 477.113 | E23: 61.25582436 | F23: 1 | G23: 0.25 | H23: 2 | I23: 170.3846154 | J23: 391.9206923 | K23: 121.5001289 | L23: 3.225681288 | M23: 3 | N23: =IF(A23="","",1 - (VLOOKUP(M23,'Normal Loss Table (Inverse)'!$A$4:$B$33,2)*K23/I23)) -> 1 | O23: 85.19230769 | P23: 12274.1291 | Q23: 68740.32075 | R23: 1.4023 | S23: =IF(A23="","",VLOOKUP(R23,'Normal Loss Table'!$A$3:$B$32,2)*K23) -> 0 | T23: 85.19230769 | U23: 638254.7131 | V23: 0 | W23: -159563.6783 | X23: -11293.23833 | Y23: -148270.4399 | Z23: 0
A24: P 021 | B24: 487.0576923 | C24: 23.741336 | D24: 2615.718 | E24: 206.7012065 | F24: 1 | G24: 0.25 | H24: 2 | I24: 974.1153846 | J24: 2128.660308 | K24: 568.0457492 | L24: 3.74733956 | M24: 3 | N24: =IF(A24="","",1 - (VLOOKUP(M24,'Normal Loss Table (Inverse)'!$A$4:$B$33,2)*K24/I24)) -> 1 | O24: 487.0576923 | P24: 11563.40032 | Q24: 62100.63992 | R24: 1.7149 | S24: =IF(A24="","",VLOOKUP(R24,'Normal Loss Table'!$A$3:$B$32,2)*K24) -> 0 | T24: 487.0576923 | U24: 601296.8169 | V24: 0 | W24: -150324.2042 | X24: -10107.44792 | Y24: -140216.7563 | Z24: 0
A25: P 022 | B25: 69.55769231 | C25: 99.546624 | D25: 588.588 | E25: 49.48179046 | F25: 1 | G25: 0.25 | H25: 2 | I25: 139.1153846 | J25: 519.0303077 | K25: 98.6669536 | L25: 5.26042701 | M25: 3 | N25: =IF(A25="","",1 - (VLOOKUP(M25,'Normal Loss Table (Inverse)'!$A$4:$B$33,2)*K25/I25)) -> 1 | O25: 69.55769231 | P25: 6924.233442 | Q25: 58591.94833 | R25: 1.4099 | S25: =IF(A25="","",VLOOKUP(R25,'Normal Loss Table'!$A$3:$B$32,2)*K25) -> 0 | T25: 69.55769231 | U25: 360060.139 | V25: 0 | W25: -90015.03475 | X25: -10333.54298 | Y25: -79681.49178 | Z25: 0
A26: P 023 | B26: 349.8269231 | C26: 76.076 | D26: 1105.832 | E26: 168.7556211 | F26: 1 | G26: 0.25 | H26: 2 | I26: 699.6538462 | J26: 756.0050769 | K26: 423.4805727 | L26: 1.785217849 | M26: 1.785217849 | N26: =IF(A26="","",1 - (VLOOKUP(M26,'Normal Loss Table (Inverse)'!$A$4:$B$33,2)*K26/I26)) -> 0.9914051439 | O26: 346.820211 | P26: 26384.69437 | Q26: 84127.27523 | R26: 1.6522 | S26: =IF(A26="","",VLOOKUP(R26,'Normal Loss Table'!$A$3:$B$32,2)*K26) -> 0 | T26: 349.8269231 | U26: 1372004.107 | V26: 0 | W26: -343001.0268 | X26: -11502.76845 | Y26: -331498.2584 | Z26: 0
A27: P 024 | B27: 2166.673077 | C27: 5.054 | D27: 12226.578 | E27: 1018.071509 | F27: 1 | G27: 0.25 | H27: 2 | I27: 4333.346154 | J27: 10059.90492 | K27: 2601.424882 | L27: 3.867074922 | M27: 3 | N27: =IF(A27="","",1 - (VLOOKUP(M27,'Normal Loss Table (Inverse)'!$A$4:$B$33,2)*K27/I27)) -> 1 | O27: 2166.673077 | P27: 10950.36573 | Q27: 61793.12521 | R27: 1.6658 | S27: =IF(A27="","",VLOOKUP(R27,'Normal Loss Table'!$A$3:$B$32,2)*K27) -> 0 | T27: 2166.673077 | U27: 569419.018 | V27: 0 | W27: -142354.7545 | X27: -10168.5519 | Y27: -132186.2026 | Z27: 0
A28: P 025 | B28: 1035.519231 | C28: 19.852948 | D28: 4306.022 | E28: 377.2762285 | F28: 1 | G28: 0.25 | H28: 2 | I28: 2071.038462 | J28: 3270.502769 | K28: 1164.892606 | L28: 2.807557326 | M28: 2.807557326 | N28: =IF(A28="","",1 - (VLOOKUP(M28,'Normal Loss Table (Inverse)'!$A$4:$B$33,2)*K28/I28)) -> 0.9996062725 | O28: 1035.111518 | P28: 20550.01515 | Q28: 85487.23085 | R28: 1.7779 | S28: =IF(A28="","",VLOOKUP(R28,'Normal Loss Table'!$A$3:$B$32,2)*K28) -> 0 | T28: 1035.519231 | U28: 1068600.788 | V28: 0 | W28: -267150.1969 | X28: -12985.82428 | Y28: -254164.3726 | Z28: 0
A29: P 026 | B29: 627.9807692 | C29: 28.826496 | D29: 3085.628 | E29: 290.9064596 | F29: 1 | G29: 0.25 | H29: 2 | I29: 1255.961538 | J29: 2457.647231 | K29: 750.741622 | L29: 3.273625917 | M29: 3 | N29: =IF(A29="","",1 - (VLOOKUP(M29,'Normal Loss Table (Inverse)'!$A$4:$B$33,2)*K29/I29)) -> 1 | O29: 627.9807692 | P29: 18102.48513 | Q29: 88947.8432 | R29: 1.673 | S29: =IF(A29="","",VLOOKUP(R29,'Normal Loss Table'!$A$3:$B$32,2)*K29) -> 0 | T29: 627.9807692 | U29: 941329.2269 | V29: 0 | W29: -235332.3067 | X29: -14169.07161 | Y29: -221163.2351 | Z29: 0
A30: P 027 | B30: 818.6538462 | C30: 13.218756 | D30: 3838.513 | E30: 292.9490945 | F30: 1 | G30: 0.25 | H30: 2 | I30: 1637.307692 | J30: 3019.859154 | K30: 917.5142853 | L30: 3.291348377 | M30: 3 | N30: =IF(A30="","",1 - (VLOOKUP(M30,'Normal Loss Table (Inverse)'!$A$4:$B$33,2)*K30/I30)) -> 1 | O30: 818.6538462 | P30: 10821.58544 | Q30: 50740.36675 | R30: 1.7845 | S30: =IF(A30="","",VLOOKUP(R30,'Normal Loss Table'!$A$3:$B$32,2)*K30) -> 0 | T30: 818.6538462 | U30: 562722.4429 | V30: 0 | W30: -140680.6107 | X30: -7983.756262 | Y30: -132696.8545 | Z30: 0
A31: P 028 | B31: 160.3269231 | C31: 48.02516 | D31: 1834.707 | E31: 91.48785865 | F31: 1 | G31: 0.25 | H31: 2 | I31: 320.6538462 | J31: 1674.380077 | K31: 206.0213067 | L31: 8.127218022 | M31: 3 | N31: =IF(A31="","",1 - (VLOOKUP(M31,'Normal Loss Table (Inverse)'!$A$4:$B$33,2)*K31/I31)) -> 1 | O31: 160.3269231 | P31: 7699.726133 | Q31: 88112.09723 | R31: 1.5564 | S31: =IF(A31="","",VLOOKUP(R31,'Normal Loss Table'!$A$3:$B$32,2)*K31) -> 0 | T31: 160.3269231 | U31: 400385.7589 | V31: 0 | W31: -100096.4397 | X31: -16082.47422 | Y31: -84013.96551 | Z31: 0
A32: P 029 | B32: 1025.192308 | C32: 13.78564 | D32: 4628.442 | E32: 424.740153 | F32: 1 | G32: 0.25 | H32: 2 | I32: 2050.384615 | J32: 3603.249692 | K32: 1188.203544 | L32: 3.032518889 | M32: 3 | N32: =IF(A32="","",1 - (VLOOKUP(M32,'Normal Loss Table (Inverse)'!$A$4:$B$33,2)*K32/I32)) -> 1 | O32: 1025.192308 | P32: 14132.93208 | Q32: 63806.03517 | R32: 1.7256 | S32: =IF(A32="","",VLOOKUP(R32,'Normal Loss Table'!$A$3:$B$32,2)*K32) -> 0 | T32: 1025.192308 | U32: 734912.4684 | V32: 0 | W32: -183728.1171 | X32: -9934.620618 | Y32: -173793.4965 | Z32: 0
A33: P 030 | B33: 292.3846154 | C33: 19.72656 | D33: 3127.817 | E33: 290.0994524 | F33: 1 | G33: 0.25 | H33: 2 | I33: 584.7692308 | J33: 2835.432385 | K33: 503.7897855 | L33: 5.628205387 | M33: 3 | N33: =IF(A33="","",1 - (VLOOKUP(M33,'Normal Loss Table (Inverse)'!$A$4:$B$33,2)*K33/I33)) -> 1 | O33: 292.3846154 | P33: 5767.742658 | Q33: 61701.06972 | R33: 1.1607 | S33: =IF(A33="","",VLOOKUP(R33,'Normal Loss Table'!$A$3:$B$32,2)*K33) -> 0 | T33: 292.3846154 | U33: 299922.6182 | V33: 0 | W33: -74980.65456 | X33: -11186.66541 | Y33: -63793.98915 | Z33: 0
A34: P 031 | B34: 559.0192308 | C34: 14.530136 | D34: 4994.423 | E34: 245.7500316 | F34: 1 | G34: 0.25 | H34: 2 | I34: 1118.038462 | J34: 4435.403769 | K34: 658.2466532 | L34: 6.738209374 | M34: 3 | N34: =IF(A34="","",1 - (VLOOKUP(M34,'Normal Loss Table (Inverse)'!$A$4:$B$33,2)*K34/I34)) -> 1 | O34: 559.0192308 | P34: 8122.62545 | Q34: 72569.64543 | R34: 1.6985 | S34: =IF(A34="","",VLOOKUP(R34,'Normal Loss Table'!$A$3:$B$32,2)*K34) -> 0 | T34: 559.0192308 | U34: 422376.5234 | V34: 0 | W34: -105594.1308 | X34: -12889.404 | Y34: -92704.72685 | Z34: 0
A35: P 032 | B35: 2439.134615 | C35: 8.709296 | D35: 6778.023 | E35: 1539.414162 | F35: 1 | G35: 0.25 | H35: 2 | I35: 4878.269231 | J35: 4338.888385 | K35: 3269.398966 | L35: 1.32712111 | M35: 1.32712111 | N35: =IF(A35="","",1 - (VLOOKUP(M35,'Normal Loss Table (Inverse)'!$A$4:$B$33,2)*K35/I35)) -> 0.9695060592 | O35: 2364.755789 | P35: 20595.35813 | Q35: 59031.8086 | R35: 1.4921 | S35: =IF(A35="","",VLOOKUP(R35,'Normal Loss Table'!$A$3:$B$32,2)*K35) -> 0 | T35: 2439.134615 | U35: 1070958.623 | V35: 0 | W35: -267739.6557 | X35: -7557.732651 | Y35: -260181.9231 | Z35: 0
A36: P 033 | B36: 525.5384615 | C36: 14.17248 | D36: 4023.733 | E36: 538.5844359 | F36: 1 | G36: 0.25 | H36: 2 | I36: 1051.076923 | J36: 3498.194538 | K36: 925.3848192 | L36: 3.780259267 | M36: 3 | N36: =IF(A36="","",1 - (VLOOKUP(M36,'Normal Loss Table (Inverse)'!$A$4:$B$33,2)*K36/I36)) -> 1 | O36: 525.5384615 | P36: 7448.183335 | Q36: 57026.27547 | R36: 1.1358 | S36: =IF(A36="","",VLOOKUP(R36,'Normal Loss Table'!$A$3:$B$32,2)*K36) -> 0 | T36: 525.5384615 | U36: 387305.5334 | V36: =B36*C36*52*Z36 -> 0 | W36: -96826.38336 | X36: -9915.618426 | Y36: -86910.76493 | Z36: 0
A37: P 034 | B37: 146.4807692 | C37: 35.105996 | D37: 1145.62 | E37: 141.1335747 | F37: 1 | G37: 0.25 | H37: 2 | I37: 292.9615385 | J37: 999.1392308 | K37: 247.5762257 | L37: 4.035683264 | M37: 3 | N37: =IF(A37="","",1 - (VLOOKUP(M37,'Normal Loss Table (Inverse)'!$A$4:$B$33,2)*K37/I37)) -> 1 | O37: 146.4807692 | P37: 5142.353299 | Q37: 40218.13114 | R37: 1.1833 | S37: =IF(A37="","",VLOOKUP(R37,'Normal Loss Table'!$A$3:$B$32,2)*K37) -> 0 | T37: 146.4807692 | U37: 267402.3715 | V37: 0 | W37: -66850.59288 | X37: -7015.155568 | Y37: -59835.43732 | Z37: 0
A38: P 035 | B38: 281.1538462 | C38: 44.8704 | D38: 618.429 | E38: 150.8232812 | F38: 1 | G38: 0.25 | H38: 2 | I38: 562.3076923 | J38: 337.2751538 | K38: 352.9062333 | L38: 0.9557075564 | M38: 0.9557075564 | N38: =IF(A38="","",1 - (VLOOKUP(M38,'Normal Loss Table (Inverse)'!$A$4:$B$33,2)*K38/I38)) -> 0.9369886162 | O38: 263.4379532 | P38: 11820.56634 | Q38: 27749.1566 | R38: 1.5934 | S38: =IF(A38="","",VLOOKUP(R38,'Normal Loss Table'!$A$3:$B$32,2)*K38) -> 0 | T38: 281.1538462 | U38: 614669.4495 | V38: 0 | W38: -153667.3624 | X38: -3026.734213 | Y38: -150640.6282 | Z38: 0
A39: P 036 | B39: 415.5961538 | C39: 22.0628 | D39: 1771.252 | E39: 201.1666229 | F39: 1 | G39: 0.25 | H39: 2 | I39: 831.1923077 | J39: 1355.655846 | K39: 503.6429126 | L39: 2.691700433 | M39: 2.691700433 | N39: =IF(A39="","",1 - (VLOOKUP(M39,'Normal Loss Table (Inverse)'!$A$4:$B$33,2)*K39/I39)) -> 0.9991517004 | O39: 415.2436038 | P39: 9161.436582 | Q39: 39078.77863 | R39: 1.6504 | S39: =IF(A39="","",VLOOKUP(R39,'Normal Loss Table'!$A$3:$B$32,2)*K39) -> 0 | T39: 415.5961538 | U39: 476394.7023 | V39: 0 | W39: -119098.6756 | X39: -5981.912761 | Y39: -113116.7628 | Z39: 0
A40: P 037 | B40: 851.0384615 | C40: 21.170636 | D40: 3325.385 | E40: 302.0714084 | F40: 1 | G40: 0.25 | H40: 2 | I40: 1702.076923 | J40: 2474.346538 | K40: 952.2398514 | L40: 2.598448841 | M40: 2.598448841 | N40: =IF(A40="","",1 - (VLOOKUP(M40,'Normal Loss Table (Inverse)'!$A$4:$B$33,2)*K40/I40)) -> 0.9988810848 | O40: 850.0862217 | P40: 17996.86597 | Q40: 70400.51539 | R40: 1.7874 | S40: =IF(A40="","",VLOOKUP(R40,'Normal Loss Table'!$A$3:$B$32,2)*K40) -> 0 | T40: 851.0384615 | U40: 935837.0303 | V40: 0 | W40: -233959.2576 | X40: -10476.69798 | Y40: -223482.5596 | Z40: 0
A41: P 038 | B41: 154.3076923 | C41: 43.66656 | D41: 1030.715 | E41: 112.2124278 | F41: 1 | G41: 0.25 | H41: 2 | I41: 308.6153846 | J41: 876.4073077 | K41: 221.3461584 | L41: 3.959442143 | M41: 3 | N41: =IF(A41="","",1 - (VLOOKUP(M41,'Normal Loss Table (Inverse)'!$A$4:$B$33,2)*K41/I41)) -> 1 | O41: 154.3076923 | P41: 6738.086105 | Q41: 45007.77839 | R41: 1.3943 | S41: =IF(A41="","",VLOOKUP(R41,'Normal Loss Table'!$A$3:$B$32,2)*K41) -> 0 | T41: 154.3076923 | U41: 350380.4774 | V41: 0 | W41: -87595.11936 | X41: -7653.938457 | Y41: -79941.1809 | Z41: 0
A42: P 039 | B42: 179.6730769 | C42: 47.8344 | D42: 926.786 | E42: 117.8421545 | F42: 1 | G42: 0.25 | H42: 2 | I42: 359.3461538 | J42: 747.1129231 | K42: 245.0631782 | L42: 3.048654345 | M42: 3 | N42: =IF(A42="","",1 - (VLOOKUP(M42,'Normal Loss Table (Inverse)'!$A$4:$B$33,2)*K42/I42)) -> 1 | O42: 179.6730769 | P42: 8594.553831 | Q42: 44332.25224 | R42: 1.4663 | S42: =IF(A42="","",VLOOKUP(R42,'Normal Loss Table'!$A$3:$B$32,2)*K42) -> 0 | T42: 179.6730769 | U42: 446916.7992 | V42: 0 | W42: -111729.1998 | X42: -7147.539682 | Y42: -104581.6601 | Z42: 0
A43: P 040 | B43: 80.67307692 | C43: 17.451044 | D43: 4121.145 | E43: 136.5981255 | F43: 1 | G43: 0.25 | H43: 2 | I43: 161.3461538 | J43: 4040.471923 | K43: 209.3471784 | L43: 19.30034096 | M43: 3 | N43: =IF(A43="","",1 - (VLOOKUP(M43,'Normal Loss Table (Inverse)'!$A$4:$B$33,2)*K43/I43)) -> 1 | O43: 80.67307692 | P43: 1407.829415 | Q43: 71918.28273 | R43: 0.7707 | S43: =IF(A43="","",VLOOKUP(R43,'Normal Loss Table'!$A$3:$B$32,2)*K43) -> 0 | T43: 80.67307692 | U43: 73207.12958 | V43: 0 | W43: -18301.78239 | X43: -14102.09066 | Y43: -4199.691733 | Z43: 0
A44: P 041 | B44: 2091.730769 | C44: 16.3495 | D44: 1643.313 | E44: 2239.065956 | F44: 1 | G44: 0.25 | H44: 2 | I44: 4183.461538 | J44: 0 | K44: 3795.019147 | L44: 0 | M44: 0 | N44: =IF(A44="","",1 - (VLOOKUP(M44,'Normal Loss Table (Inverse)'!$A$4:$B$33,2)*K44/I44)) -> 0.6381386266 | O44: 1334.8142 | P44: 21823.54477 | Q44: 26867.34589 | R44: 1.1024 | S44: =IF(A44="","",VLOOKUP(R44,'Normal Loss Table'!$A$3:$B$32,2)*K44) -> 0 | T44: 2091.730769 | U44: 1134824.328 | V44: 0 | W44: -283706.082 | X44: 1466.281264 | Y44: -285172.3633 | Z44: 0
A45: P 042 | B45: 363.2692308 | C45: 16.04512 | D45: 3317.839 | E45: 188.8688844 | F45: 1 | G45: 0.25 | H45: 2 | I45: 726.5384615 | J45: 2954.569769 | K45: 450.8962686 | L45: 6.552659614 | M45: 3 | N45: =IF(A45="","",1 - (VLOOKUP(M45,'Normal Loss Table (Inverse)'!$A$4:$B$33,2)*K45/I45)) -> 1 | O45: 363.2692308 | P45: 5828.6984 | Q45: 53235.1249 | R45: 1.6113 | S45: =IF(A45="","",VLOOKUP(R45,'Normal Loss Table'!$A$3:$B$32,2)*K45) -> 0 | T45: 363.2692308 | U45: 303092.3168 | V45: 0 | W45: -75773.0792 | X45: -9481.285299 | Y45: -66291.7939 | Z45: 0
A46: P 043 | B46: 368.2692308 | C46: 13.629004 | D46: 1839.166 | E46: 212.2337885 | F46: 1 | G46: 0.25 | H46: 2 | I46: 736.5384615 | J46: 1470.896769 | K46: 475.0879796 | L46: 3.096051326 | M46: 3 | N46: =IF(A46="","",1 - (VLOOKUP(M46,'Normal Loss Table (Inverse)'!$A$4:$B$33,2)*K46/I46)) -> 1 | O46: 368.2692308 | P46: 5019.142819 | Q46: 25066.00077 | R46: 1.5503 | S46: =IF(A46="","",VLOOKUP(R46,'Normal Loss Table'!$A$3:$B$32,2)*K46) -> 0 | T46: 368.2692308 | U46: 260995.4266 | V46: 0 | W46: -65248.85665 | X46: -4009.37159 | Y46: -61239.48506 | Z46: 0
A47: P 044 | B47: 669.6730769 | C47: 13.644356 | D47: 3653.293 | E47: 295.2362777 | F47: 1 | G47: 0.25 | H47: 2 | I47: 1339.346154 | J47: 2983.619923 | K47: 789.171052 | L47: 3.780701175 | M47: 3 | N47: =IF(A47="","",1 - (VLOOKUP(M47,'Normal Loss Table (Inverse)'!$A$4:$B$33,2)*K47/I47)) -> 1 | O47: 669.6730769 | P47: 9137.257865 | Q47: 49846.83026 | R47: 1.6972 | S47: =IF(A47="","",VLOOKUP(R47,'Normal Loss Table'!$A$3:$B$32,2)*K47) -> 0 | T47: 669.6730769 | U47: 475137.409 | V47: 0 | W47: -118784.3522 | X47: -8141.91448 | Y47: -110642.4378 | Z47: 0
A48: P 045 | B48: 132.0769231 | C48: 41.253408 | D48: 1723.918 | E48: 71.01804415 | F48: 1 | G48: 0.25 | H48: 2 | I48: 264.1538462 | J48: 1591.841077 | K48: 165.926004 | L48: 9.593680549 | M48: 3 | N48: =IF(A48="","",1 - (VLOOKUP(M48,'Normal Loss Table (Inverse)'!$A$4:$B$33,2)*K48/I48)) -> 1 | O48: 132.0769231 | P48: 5448.623195 | Q48: 71117.49261 | R48: 1.592 | S48: =IF(A48="","",VLOOKUP(R48,'Normal Loss Table'!$A$3:$B$32,2)*K48) -> 0 | T48: 132.0769231 | U48: 283328.4061 | V48: 0 | W48: -70832.10154 | X48: -13133.77388 | Y48: -57698.32765 | Z48: 0
A49: P 046 | B49: 75.73076923 | C49: 22.90184 | D49: 1622.733 | E49: 241.8306907 | F49: 1 | G49: 0.25 | H49: 4 | I49: 302.9230769 | J49: 1471.271462 | K49: 489.55437 | L49: 3.005328012 | M49: 3 | N49: =IF(A49="","",1 - (VLOOKUP(M49,'Normal Loss Table (Inverse)'!$A$4:$B$33,2)*K49/I49)) -> 1 | O49: 75.73076923 | P49: 1734.37396 | Q49: 37163.57153 | R49: 0.6188 | S49: =IF(A49="","",VLOOKUP(R49,'Normal Loss Table'!$A$3:$B$32,2)*K49) -> 0 | T49: 151.4615385 | U49: 90187.44592 | V49: 0 | W49: -22546.86148 | X49: -6738.964722 | Y49: -15807.89676 | Z49: 0
A50: P 047 | B50: 404.1153846 | C50: 15.4698 | D50: 3752.763 | E50: 404.3056335 | F50: 1 | G50: 0.25 | H50: 2 | I50: 808.2307692 | J50: 3348.647615 | K50: 700.168076 | L50: 4.782633957 | M50: 3 | N50: =IF(A50="","",1 - (VLOOKUP(M50,'Normal Loss Table (Inverse)'!$A$4:$B$33,2)*K50/I50)) -> 1 | O50: 404.1153846 | P50: 6251.584177 | Q50: 58054.49306 | R50: 1.1543 | S50: =IF(A50="","",VLOOKUP(R50,'Normal Loss Table'!$A$3:$B$32,2)*K50) -> 0 | T50: 404.1153846 | U50: 325082.3772 | V50: 0 | W50: -81270.5943 | X50: -10360.58178 | Y50: -70910.01252 | Z50: =IF(A50="","",0) -> 0
A51: P 048 | B51: 1924.019231 | C51: 10.203912 | D51: 2913.099 | E51: 705.3343107 | F51: 1 | G51: 0.25 | H51: 2 | I51: 3848.038462 | J51: 989.0797692 | K51: 2167.220104 | L51: 0.4563817802 | M51: 0.4563817802 | N51: =IF(A51="","",1 - (VLOOKUP(M51,'Normal Loss Table (Inverse)'!$A$4:$B$33,2)*K51/I51)) -> 0.87023843 | O51: 1674.355475 | P51: 17084.97592 | Q51: 29725.00584 | R51: 1.7756 | S51: =IF(A51="","",VLOOKUP(R51,'Normal Loss Table'!$A$3:$B$32,2)*K51) -> 0 | T51: 1924.019231 | U51: 888418.7479 | V51: 0 | W51: -222104.687 | X51: -2018.496585 | Y51: -220086.1904 | Z51: 0
A52: P 049 | B52: 1183.692308 | C52: 8.00166 | D52: 2652.076 | E52: 1135.467573 | F52: 1 | G52: 0.25 | H52: 2 | I52: 2367.384615 | J52: 1468.383692 | K52: 1994.91872 | L52: 0.7360619146 | M52: 0.7360619146 | N52: =IF(A52="","",1 - (VLOOKUP(M52,'Normal Loss Table (Inverse)'!$A$4:$B$33,2)*K52/I52)) -> 0.8796670421 | O52: 1041.255111 | P52: 8331.769372 | Q52: 21221.01045 | R52: 1.1867 | S52: =IF(A52="","",VLOOKUP(R52,'Normal Loss Table'!$A$3:$B$32,2)*K52) -> 0 | T52: 1183.692308 | U52: 433252.0074 | V52: 0 | W52: -108313.0018 | X52: -2349.901411 | Y52: -105963.1004 | Z52: 0
A53: P 050 | B53: 461.5769231 | C53: 19.322696 | D53: 2180.108 | E53: 239.6644997 | F53: 1 | G53: 0.25 | H53: 2 | I53: 923.1538462 | J53: 1718.531077 | K53: 572.6529496 | L53: 3.000999258 | M53: 3 | N53: =IF(A53="","",1 - (VLOOKUP(M53,'Normal Loss Table (Inverse)'!$A$4:$B$33,2)*K53/I53)) -> 1 | O53: 461.5769231 | P53: 8918.910565 | Q53: 42125.56413 | R53: 1.6121 | S53: =IF(A53="","",VLOOKUP(R53,'Normal Loss Table'!$A$3:$B$32,2)*K53) -> 0 | T53: 461.5769231 | U53: 463783.3494 | V53: 0 | W53: -115945.8373 | X53: -6641.330713 | Y53: -109304.5066 | Z53: 0
A54: P 051 | B54: 661.4230769 | C54: 11.702784 | D54: 1723.918 | E54: 620.5154197 | F54: 1 | G54: 0.25 | H54: 2 | I54: 1322.846154 | J54: 1062.494923 | K54: 1098.890012 | L54: 0.9668801347 | M54: 0.9668801347 | N54: =IF(A54="","",1 - (VLOOKUP(M54,'Normal Loss Table (Inverse)'!$A$4:$B$33,2)*K54/I54)) -> 0.91659759 | O54: 606.2587983 | P54: 7094.915765 | Q54: 20174.63999 | R54: 1.2038 | S54: =IF(A54="","",VLOOKUP(R54,'Normal Loss Table'!$A$3:$B$32,2)*K54) -> 0 | T54: 661.4230769 | U54: 368935.6198 | V54: 0 | W54: -92233.90494 | X54: -2486.829717 | Y54: -89747.07522 | Z54: 0
A55: P 052 | B55: 1381.096154 | C55: 10.91512 | D55: 1792.518 | E55: 794.131373 | F55: 1 | G55: 0.25 | H55: 2 | I55: 2762.192308 | J55: 411.4218462 | K55: 1780.088723 | L55: 0.2311243484 | M55: 0.2311243484 | N55: =IF(A55="","",1 - (VLOOKUP(M55,'Normal Loss Table (Inverse)'!$A$4:$B$33,2)*K55/I55)) -> 0.8022834186 | O55: 1108.030544 | P55: 12094.28635 | Q55: 19565.54907 | R55: 1.5517 | S55: =IF(A55="","",VLOOKUP(R55,'Normal Loss Table'!$A$3:$B$32,2)*K55) -> 0 | T55: 1381.096154 | U55: 628902.8901 | V55: 0 | W55: -157225.7225 | X55: -898.1437643 | Y55: -156327.5788 | Z55: 0
A56: P 053 | B56: 70.78846154 | C56: 9.154656 | D56: 6052.578 | E56: 83.98000148 | F56: 1 | G56: 0.25 | H56: 4 | I56: 283.1538462 | J56: 5911.001077 | K56: 182.2678493 | L56: 32.43030024 | M56: 3 | N56: =IF(A56="","",1 - (VLOOKUP(M56,'Normal Loss Table (Inverse)'!$A$4:$B$33,2)*K56/I56)) -> 1 | O56: 70.78846154 | P56: 648.0440142 | Q56: 55409.2695 | R56: 1.5535 | S56: =IF(A56="","",VLOOKUP(R56,'Normal Loss Table'!$A$3:$B$32,2)*K56) -> 0 | T56: 141.5769231 | U56: 33698.28874 | V56: 0 | W56: -8424.572184 | X56: -10822.63629 | Y56: 2398.064111 | Z56: 0
A57: P 054 | B57: 347.8076923 | C57: 18.71348 | D57: 2228.128 | E57: 169.0599196 | F57: 1 | G57: 0.25 | H57: 2 | I57: 695.6153846 | J57: 1880.320308 | K57: 422.0577018 | L57: 4.455126159 | M57: 3 | N57: =IF(A57="","",1 - (VLOOKUP(M57,'Normal Loss Table (Inverse)'!$A$4:$B$33,2)*K57/I57)) -> 1 | O57: 347.8076923 | P57: 6508.692294 | Q57: 41696.02877 | R57: 1.6482 | S57: =IF(A57="","",VLOOKUP(R57,'Normal Loss Table'!$A$3:$B$32,2)*K57) -> 0 | T57: 347.8076923 | U57: 338451.9993 | V57: 0 | W57: -84612.99982 | X57: -7037.467294 | Y57: -77575.53253 | Z57: 0
A58: P 055 | B58: 383.5769231 | C58: 24.754568 | D58: 1173.403 | E58: 164.5173983 | F58: 1 | G58: 0.25 | H58: 2 | I58: 767.1538462 | J58: 789.8260769 | K58: 448.6236782 | L58: 1.760553701 | M58: 1.760553701 | N58: =IF(A58="","",1 - (VLOOKUP(M58,'Normal Loss Table (Inverse)'!$A$4:$B$33,2)*K58/I58)) -> 0.9916959861 | O58: 380.391695 | P58: 9416.43208 | Q58: 29047.08435 | R58: 1.71 | S58: =IF(A58="","",VLOOKUP(R58,'Normal Loss Table'!$A$3:$B$32,2)*K58) -> 0 | T58: 383.5769231 | U58: 489654.4681 | V58: 0 | W58: -122413.617 | X58: -3910.360666 | Y58: -118503.2564 | Z58: 0
A59: P 056 | B59: 456.5961538 | C59: 22.957244 | D59: 1621.018 | E59: 226.1471202 | F59: 1 | G59: 0.25 | H59: 2 | I59: 913.1923077 | J59: 1164.421846 | K59: 557.4630819 | L59: 2.088787373 | M59: 2.088787373 | N59: =IF(A59="","",1 - (VLOOKUP(M59,'Normal Loss Table (Inverse)'!$A$4:$B$33,2)*K59/I59)) -> 0.9954826308 | O59: 454.5335404 | P59: 10434.83739 | Q59: 37214.10575 | R59: 1.6381 | S59: =IF(A59="","",VLOOKUP(R59,'Normal Loss Table'!$A$3:$B$32,2)*K59) -> 0 | T59: 456.5961538 | U59: 542611.5445 | V59: 0 | W59: -135652.8861 | X59: -5346.383288 | Y59: -130306.5028 | Z59: 0
A60: P 057 | B60: 654.75 | C60: 15.77684 | D60: 2052.855 | E60: 284.9631469 | F60: 1 | G60: 0.25 | H60: 2 | I60: 1309.5 | J60: 1398.105 | K60: 768.8338915 | L60: 1.818474726 | M60: 1.818474726 | N60: =IF(A60="","",1 - (VLOOKUP(M60,'Normal Loss Table (Inverse)'!$A$4:$B$33,2)*K60/I60)) -> 0.9935416779 | O60: 650.5214136 | P60: 10263.17226 | Q60: 32387.56488 | R60: 1.7032 | S60: =IF(A60="","",VLOOKUP(R60,'Normal Loss Table'!$A$3:$B$32,2)*K60) -> 0 | T60: 654.75 | U60: 533684.9575 | V60: 0 | W60: -133421.2394 | X60: -4411.535778 | Y60: -129009.7036 | Z60: 0
A61: P 058 | B61: 1066.019231 | C61: 9.113996 | D61: 3561.712 | E61: 811.0419222 | F61: 1 | G61: 0.25 | H61: 2 | I61: 2132.038462 | J61: 2495.692769 | K61: 1565.878348 | L61: 1.593797355 | M61: 1.593797355 | N61: =IF(A61="","",1 - (VLOOKUP(M61,'Normal Loss Table (Inverse)'!$A$4:$B$33,2)*K61/I61)) -> 0.9784805779 | O61: 1043.079113 | P61: 9506.618863 | Q61: 32461.42892 | R61: 1.3616 | S61: =IF(A61="","",VLOOKUP(R61,'Normal Loss Table'!$A$3:$B$32,2)*K61) -> 0 | T61: 1066.019231 | U61: 494344.1809 | V61: 0 | W61: -123586.0452 | X61: -4549.146783 | Y61: -119036.8984 | Z61: 0
A62: P 059 | B62: 120.7884615 | C62: 13.30304 | D62: 2177.364 | E62: 307.1867502 | F62: 1 | G62: 0.25 | H62: 4 | I62: 483.1538462 | J62: 1935.787077 | K62: 626.1346902 | L62: 3.091646425 | M62: 3 | N62: =IF(A62="","",1 - (VLOOKUP(M62,'Normal Loss Table (Inverse)'!$A$4:$B$33,2)*K62/I62)) -> 1 | O62: 120.7884615 | P62: 1606.853735 | Q62: 28965.56039 | R62: 0.7716 | S62: =IF(A62="","",VLOOKUP(R62,'Normal Loss Table'!$A$3:$B$32,2)*K62) -> 0 | T62: 241.5769231 | U62: 83556.39424 | V62: 0 | W62: -20889.09856 | X62: -5150.370583 | Y62: -15738.72798 | Z62: 0
A63: P 060 | B63: 64.26923077 | C63: 20.8848 | D63: 1481.074 | E63: 46.01283512 | F63: 1 | G63: 0.25 | H63: 4 | I63: 257.0769231 | J63: 1352.535538 | K63: 112.2464164 | L63: 12.04969906 | M63: 3 | N63: =IF(A63="","",1 - (VLOOKUP(M63,'Normal Loss Table (Inverse)'!$A$4:$B$33,2)*K63/I63)) -> 1 | O63: 64.26923077 | P63: 1342.250031 | Q63: 30931.93428 | R63: 2.2903 | S63: =IF(A63="","",VLOOKUP(R63,'Normal Loss Table'!$A$3:$B$32,2)*K63) -> 0 | T63: 128.5384615 | U63: 69797.0016 | V63: 0 | W63: -17449.2504 | X63: -5649.486843 | Y63: -11799.76356 | Z63: 0
A64: P 061 | B64: 36.38461538 | C64: 16.27464 | D64: 231.182 | E64: 89.13245351 | F64: 1 | G64: 0.25 | H64: 2 | I64: 72.76923077 | J64: 194.7973846 | K64: 131.1984328 | L64: 1.484753899 | M64: 1.484753899 | N64: =IF(A64="","",1 - (VLOOKUP(M64,'Normal Loss Table (Inverse)'!$A$4:$B$33,2)*K64/I64)) -> 0.9340124584 | O64: 33.98368406 | P64: 553.072224 | Q64: 3762.403824 | R64: 0.5547 | S64: =IF(A64="","",VLOOKUP(R64,'Normal Loss Table'!$A$3:$B$32,2)*K64) -> 0 | T64: 36.38461538 | U64: 28759.75565 | V64: 0 | W64: -7189.938912 | X64: -634.0514615 | Y64: -6555.887451 | Z64: 0
A65: P 062 | B65: 227.3269231 | C65: 18.032064 | D65: 1002.932 | E65: 129.0495757 | F65: 1 | G65: 0.25 | H65: 2 | I65: 454.6538462 | J65: 775.6050769 | K65: 291.5220677 | L65: 2.660536416 | M65: 2.660536416 | N65: =IF(A65="","",1 - (VLOOKUP(M65,'Normal Loss Table (Inverse)'!$A$4:$B$33,2)*K65/I65)) -> 0.9991023261 | O65: 227.1228576 | P65: 4095.493905 | Q65: 18084.93401 | R65: 1.5596 | S65: =IF(A65="","",VLOOKUP(R65,'Normal Loss Table'!$A$3:$B$32,2)*K65) -> 0 | T65: 227.3269231 | U65: 212965.683 | V65: 0 | W65: -53241.42076 | X65: -2797.152077 | Y65: -50444.26868 | Z65: 0
A66: P 063 | B66: 217.0961538 | C66: 23.674608 | D66: 1013.908 | E66: 86.38792118 | F66: 1 | G66: 0.25 | H66: 2 | I66: 434.1923077 | J66: 796.8118462 | K66: 249.1113925 | L66: 3.198616644 | M66: 3 | N66: =IF(A66="","",1 - (VLOOKUP(M66,'Normal Loss Table (Inverse)'!$A$4:$B$33,2)*K66/I66)) -> 1 | O66: 217.0961538 | P66: 5139.666341 | Q66: 24003.87445 | R66: 1.743 | S66: =IF(A66="","",VLOOKUP(R66,'Normal Loss Table'!$A$3:$B$32,2)*K66) -> 0 | T66: 217.0961538 | U66: 267262.6497 | V66: 0 | W66: -66815.66243 | X66: -3772.841621 | Y66: -63042.82081 | Z66: 0
A67: P 064 | B67: 1205.557692 | C67: 8.464272 | D67: 2907.268 | E67: 746.6753609 | F67: 1 | G67: 0.25 | H67: 2 | I67: 2411.115385 | J67: 1701.710308 | K67: 1602.628322 | L67: 1.061824682 | M67: 1.061824682 | N67: =IF(A67="","",1 - (VLOOKUP(M67,'Normal Loss Table (Inverse)'!$A$4:$B$33,2)*K67/I67)) -> 0.9446318745 | O67: 1138.808223 | P67: 9639.182553 | Q67: 24607.90713 | R67: 1.5045 | S67: =IF(A67="","",VLOOKUP(R67,'Normal Loss Table'!$A$3:$B$32,2)*K67) -> 0 | T67: 1205.557692 | U67: 501237.4927 | V67: 0 | W67: -125309.3732 | X67: -2880.747782 | Y67: -122428.6254 | Z67: 0
A68: P 065 | B68: 3723.288462 | C68: 10.3018 | D68: 5044.158 | E68: 1459.254515 | F68: 1 | G68: 0.25 | H68: 2 | I68: =IF(A68="","",H68*B68) -> 7446.576923 | J68: =IF(A68="","",IF(D68-(I68/2) > 0, D68-(I68/2), 0)) -> 1320.869538 | K68: 4256.96188 | L68: =IF(A68="","",J68/K68) -> 0.3102845588 | M68: =IF(A68="","",IF(L68 >3,3,L68)) -> 0.3102845588 | N68: =IF(A68="","",1 - (VLOOKUP(M68,'Normal Loss Table (Inverse)'!$A$4:$B$33,2)*K68/I68)) -> 0.8475364258 | O68: =IF(A68="","",B68*N68) -> 3155.622595 | P68: =IF(A68="","",O68*$C68) -> 32508.59285 | Q68: =IF(A68="","",C68*D68) -> 51963.90688 | R68: =IF(A68="","",ROUND((1-$Z68)*(I68/K68),4)) -> 1.7493 | S68: =IF(A68="","",VLOOKUP(R68,'Normal Loss Table'!$A$3:$B$32,2)*K68) -> 0 | T68: =IF(A68="","",I68/2+S68) -> 3723.288462 | U68: =IF(A68="","",B68*C68*52*N68) -> 1690446.828 | V68: =B68*C68*52*Z68 -> 0 | W68: =IF(A68="","",(V68-U68)*G68) -> -422611.707 | X68: =IF(A68="","",(T68*C68-Q68)*0.2) -> -2721.466762 | Y68: =IF(A68="","",W68-X68) -> -419890.2403 | Z68: 0
A69: P 066 | B69: 236.2884615 | C69: 42.151348 | D69: 632.149 | E69: 102.6813721 | F69: 1 | G69: 0.25 | H69: 2 | I69: 472.5769231 | J69: 395.8605385 | K69: =IF(A69="","",SQRT(($H69*POWER(E69,2)) + ((B69^2)*POWER(1,2)))) -> 277.3430464 | L69: 1.427331759 | M69: 1.427331759 | N69: =IF(A69="","",1 - (VLOOKUP(M69,'Normal Loss Table (Inverse)'!$A$4:$B$33,2)*K69/I69)) -> 0.9785204165 | O69: 231.2130838 | P69: 9745.943157 | Q69: 26645.93249 | R69: 1.7039 | S69: =IF(A69="","",VLOOKUP(R69,'Normal Loss Table'!$A$3:$B$32,2)*K69) -> 0 | T69: 236.2884615 | U69: 506789.0442 | V69: 0 | W69: -126697.261 | X69: -3337.211063 | Y69: -123360.05 | Z69: 0
A70: P 067 | B70: 108.6730769 | C70: 45.831648 | D70: 593.733 | E70: 73.47207584 | F70: 1 | G70: 0.25 | H70: 2 | I70: 217.3461538 | J70: 485.0599231 | K70: 150.3533488 | L70: 3.226133151 | M70: 3 | N70: =IF(A70="","",1 - (VLOOKUP(M70,'Normal Loss Table (Inverse)'!$A$4:$B$33,2)*K70/I70)) -> 1 | O70: 108.6730769 | P70: 4980.666209 | Q70: 27211.76186 | R70: 1.4456 | S70: =IF(A70="","",VLOOKUP(R70,'Normal Loss Table'!$A$3:$B$32,2)*K70) -> 0 | T70: 108.6730769 | U70: 258994.6428 | V70: 0 | W70: -64748.66071 | X70: -4446.219131 | Y70: -60302.44158 | Z70: 0
A71: P 068 | B71: 322.4423077 | C71: 16.04512 | D71: 1548.302 | E71: 175.5653516 | F71: 1 | G71: 0.25 | H71: 2 | I71: 644.8846154 | J71: 1225.859692 | K71: 406.9587536 | L71: 3.012245544 | M71: 3 | N71: =IF(A71="","",1 - (VLOOKUP(M71,'Normal Loss Table (Inverse)'!$A$4:$B$33,2)*K71/I71)) -> 1 | O71: 322.4423077 | P71: 5173.62552 | Q71: 24842.69139 | R71: 1.5846 | S71: =IF(A71="","",VLOOKUP(R71,'Normal Loss Table'!$A$3:$B$32,2)*K71) -> 0 | T71: 322.4423077 | U71: 269028.527 | V71: 0 | W71: -67257.13176 | X71: -3933.813173 | Y71: -63323.31859 | Z71: 0
A72: P 069 | B72: 166.7692308 | C72: 39.000008 | D72: 798.161 | E72: 67.0058866 | F72: 1 | G72: 0.25 | H72: 2 | I72: 333.5384615 | J72: 631.3917692 | K72: 191.8112458 | L72: 3.291734886 | M72: 3 | N72: =IF(A72="","",1 - (VLOOKUP(M72,'Normal Loss Table (Inverse)'!$A$4:$B$33,2)*K72/I72)) -> 1 | O72: 166.7692308 | P72: 6504.001334 | Q72: 31128.28539 | R72: 1.7389 | S72: =IF(A72="","",VLOOKUP(R72,'Normal Loss Table'!$A$3:$B$32,2)*K72) -> 0 | T72: 166.7692308 | U72: 338208.0694 | V72: 0 | W72: -84552.01734 | X72: -4924.85681 | Y72: -79627.16053 | Z72: 0
A73: P 070 | B73: 99.76923077 | C73: 22.0628 | D73: 1096.914 | E73: 48.40904768 | F73: 1 | G73: 0.25 | H73: 4 | I73: 399.0769231 | J73: 897.3755385 | K73: 139.0238936 | L73: 6.454829563 | M73: 3 | N73: =IF(A73="","",1 - (VLOOKUP(M73,'Normal Loss Table (Inverse)'!$A$4:$B$33,2)*K73/I73)) -> 1 | O73: 99.76923077 | P73: 2201.188585 | Q73: 24200.9942 | R73: 2.8706 | S73: =IF(A73="","",VLOOKUP(R73,'Normal Loss Table'!$A$3:$B$32,2)*K73) -> 0 | T73: 199.5384615 | U73: 114461.8064 | V73: 0 | W73: -28615.4516 | X73: -3959.723406 | Y73: -24655.72819 | Z73: 0
A74: P 071 | B74: 43.42307692 | C74: 78.845516 | D74: 288.806 | E74: 31.49624699 | F74: 1 | G74: 0.25 | H74: 2 | I74: 86.84615385 | J74: 245.3829231 | K74: 62.20603475 | L74: 3.944680353 | M74: 3 | N74: =IF(A74="","",1 - (VLOOKUP(M74,'Normal Loss Table (Inverse)'!$A$4:$B$33,2)*K74/I74)) -> 1 | O74: 43.42307692 | P74: 3423.714906 | Q74: 22771.05809 | R74: 1.3961 | S74: =IF(A74="","",VLOOKUP(R74,'Normal Loss Table'!$A$3:$B$32,2)*K74) -> 0 | T74: 43.42307692 | U74: 178033.1751 | V74: 0 | W74: -44508.29378 | X74: -3869.468638 | Y74: -40638.82514 | Z74: 0
A75: P 072 | B75: 131.6346154 | C75: 20.8848 | D75: 952.168 | E75: 100.9402908 | F75: 1 | G75: 0.25 | H75: 4 | I75: 526.5384615 | J75: 688.8987692 | K75: 241.0050647 | L75: 2.858441046 | M75: 2.858441046 | N75: =IF(A75="","",1 - (VLOOKUP(M75,'Normal Loss Table (Inverse)'!$A$4:$B$33,2)*K75/I75)) -> 0.9996795988 | O75: 131.5924395 | P75: 2748.28178 | Q75: 19885.83825 | R75: 2.1848 | S75: =IF(A75="","",VLOOKUP(R75,'Normal Loss Table'!$A$3:$B$32,2)*K75) -> 0 | T75: 263.2692308 | U75: 142910.6526 | V75: 0 | W75: -35727.66315 | X75: -2877.502603 | Y75: -32850.16054 | Z75: =IF(A75="","",0) -> 0
A76: P 073 | B76: 379.1538462 | C76: 10.804996 | D76: 2708.671 | E76: 334.5845176 | F76: 1 | G76: 0.25 | H76: 2 | I76: 758.3076923 | J76: 2329.517154 | K76: 606.3425087 | L76: 3.841916277 | M76: 3 | N76: =IF(A76="","",1 - (VLOOKUP(M76,'Normal Loss Table (Inverse)'!$A$4:$B$33,2)*K76/I76)) -> 1 | O76: 379.1538462 | P76: 4096.755791 | Q76: 29267.17932 | R76: 1.2506 | S76: =IF(A76="","",VLOOKUP(R76,'Normal Loss Table'!$A$3:$B$32,2)*K76) -> 0 | T76: 379.1538462 | U76: 213031.3011 | V76: 0 | W76: -53257.82528 | X76: -5034.084706 | Y76: -48223.74058 | Z76: 0
A77: P 074 | B77: 304.3461538 | C77: 21.174968 | D77: 1282.477 | E77: 316.7851307 | F77: 1 | G77: 0.25 | H77: 2 | I77: 608.6923077 | J77: 978.1308462 | K77: 541.6015319 | L77: 1.805997193 | M77: 1.805997193 | N77: =IF(A77="","",1 - (VLOOKUP(M77,'Normal Loss Table (Inverse)'!$A$4:$B$33,2)*K77/I77)) -> 0.9902124328 | O77: 301.3673454 | P77: 6381.443896 | Q77: 27156.40944 | R77: 1.1239 | S77: =IF(A77="","",VLOOKUP(R77,'Normal Loss Table'!$A$3:$B$32,2)*K77) -> 0 | T77: 304.3461538 | U77: 331835.0826 | V77: 0 | W77: -82958.77064 | X77: -4142.377873 | Y77: -78816.39277 | Z77: 0
A78: P 075 | B78: 795.9038462 | C78: 11.82104 | D78: 2794.421 | E78: 354.4091056 | F78: 1 | G78: 0.25 | H78: 2 | I78: 1591.807692 | J78: 1998.517154 | K78: 940.5714011 | L78: 2.124790475 | M78: 2.124790475 | N78: =IF(A78="","",1 - (VLOOKUP(M78,'Normal Loss Table (Inverse)'!$A$4:$B$33,2)*K78/I78)) -> 0.9962183516 | O78: 792.8940177 | P78: 9372.831899 | Q78: 33032.96242 | R78: 1.6924 | S78: =IF(A78="","",VLOOKUP(R78,'Normal Loss Table'!$A$3:$B$32,2)*K78) -> 0 | T78: 795.9038462 | U78: 487387.2587 | V78: 0 | W78: -121846.8147 | X78: -4724.910243 | Y78: -117121.9044 | Z78: 0
A79: P 076 | B79: 339.5 | C79: 12.319296 | D79: 2001.748 | E79: 168.8628054 | F79: 1 | G79: 0.25 | H79: 2 | I79: 679 | J79: 1662.248 | K79: 415.0777567 | L79: 4.004666531 | M79: 3 | N79: =IF(A79="","",1 - (VLOOKUP(M79,'Normal Loss Table (Inverse)'!$A$4:$B$33,2)*K79/I79)) -> 1 | O79: 339.5 | P79: 4182.400992 | Q79: 24660.12613 | R79: 1.6358 | S79: =IF(A79="","",VLOOKUP(R79,'Normal Loss Table'!$A$3:$B$32,2)*K79) -> 0 | T79: 339.5 | U79: 217484.8516 | V79: 0 | W79: -54371.2129 | X79: -4095.545027 | Y79: -50275.66787 | Z79: 0
A80: P 077 | B80: 1180.980769 | C80: 11.02 | D80: 3624.824 | E80: 573.2842258 | F80: 1 | G80: 0.25 | H80: 2 | I80: 2361.961538 | J80: 2443.843231 | K80: 1432.489157 | L80: 1.706011678 | M80: 1.706011678 | N80: =IF(A80="","",1 - (VLOOKUP(M80,'Normal Loss Table (Inverse)'!$A$4:$B$33,2)*K80/I80)) -> 0.9913879436 | O80: 1170.810096 | P80: 12902.32726 | Q80: 39945.56048 | R80: 1.6489 | S80: =IF(A80="","",VLOOKUP(R80,'Normal Loss Table'!$A$3:$B$32,2)*K80) -> 0 | T80: 1180.980769 | U80: 670921.0175 | V80: 0 | W80: -167730.2544 | X80: -5386.230481 | Y80: -162344.0239 | Z80: 0
A81: P 078 | B81: 409.9038462 | C81: 15.8232 | D81: 1853.229 | E81: 226.8096083 | F81: 1 | G81: 0.25 | H81: 2 | I81: 819.8076923 | J81: 1443.325154 | K81: 520.4866568 | L81: 2.773030077 | M81: 2.773030077 | N81: =IF(A81="","",1 - (VLOOKUP(M81,'Normal Loss Table (Inverse)'!$A$4:$B$33,2)*K81/I81)) -> 0.9993651113 | O81: 409.6436028 | P81: 6481.872656 | Q81: 29324.01311 | R81: 1.5751 | S81: =IF(A81="","",VLOOKUP(R81,'Normal Loss Table'!$A$3:$B$32,2)*K81) -> 0 | T81: 409.9038462 | U81: 337057.3781 | V81: 0 | W81: -84264.34453 | X81: -4567.604515 | Y81: -79696.74002 | Z81: 0
A82: P 079 | B82: 68 | C82: 21.91042 | D82: 3465.672 | E82: 234.0468363 | F82: 1 | G82: 0.25 | H82: 4 | I82: 272 | J82: 3329.672 | K82: 473.0070679 | L82: 7.0393705 | M82: 3 | N82: =IF(A82="","",1 - (VLOOKUP(M82,'Normal Loss Table (Inverse)'!$A$4:$B$33,2)*K82/I82)) -> 1 | O82: 68 | P82: 1489.90856 | Q82: 75934.3291 | R82: 0.575 | S82: =IF(A82="","",VLOOKUP(R82,'Normal Loss Table'!$A$3:$B$32,2)*K82) -> 0 | T82: 136 | U82: 77475.24512 | V82: 0 | W82: -19368.81128 | X82: -14590.9024 | Y82: -4777.908884 | Z82: 0
A83: P 080 | B83: 943.4807692 | C83: 9.915948 | D83: 2882.572 | E83: 718.6399052 | F83: 1 | G83: 0.25 | H83: 2 | I83: 1886.961538 | J83: 1939.091231 | K83: 1386.738111 | L83: 1.398311055 | M83: 1.398311055 | N83: =IF(A83="","",1 - (VLOOKUP(M83,'Normal Loss Table (Inverse)'!$A$4:$B$33,2)*K83/I83)) -> 0.966561807 | O83: 911.9324772 | P83: 9042.675023 | Q83: 28583.43406 | R83: 1.3607 | S83: =IF(A83="","",VLOOKUP(R83,'Normal Loss Table'!$A$3:$B$32,2)*K83) -> 0 | T83: 943.4807692 | U83: 470219.1012 | V83: 0 | W83: -117554.7753 | X83: -3845.585562 | Y83: -113709.1897 | Z83: 0
A84: P 081 | B84: 546.1153846 | C84: 12.723616 | D84: 1778.112 | E84: 210.3727461 | F84: 1 | G84: 0.25 | H84: 2 | I84: 1092.230769 | J84: 1231.996615 | K84: 621.8966135 | L84: 1.981031233 | M84: 1.981031233 | N84: =IF(A84="","",1 - (VLOOKUP(M84,'Normal Loss Table (Inverse)'!$A$4:$B$33,2)*K84/I84)) -> 0.9952171906 | O84: 543.5034188 | P84: 6915.328796 | Q84: 22624.01429 | R84: 1.7563 | S84: =IF(A84="","",VLOOKUP(R84,'Normal Loss Table'!$A$3:$B$32,2)*K84) -> 0 | T84: 546.1153846 | U84: 359597.0974 | V84: 0 | W84: -89899.27435 | X84: -3135.090369 | Y84: -86764.18398 | Z84: 0
A85: P 082 | B85: 1 | C85: 42.90048 | D85: 0.49 | E85: 0 | F85: 1 | G85: 0.25 | H85: 2 | I85: 2 | J85: 0 | K85: 1 | L85: 0 | M85: 0 | N85: =IF(A85="","",1 - (VLOOKUP(M85,'Normal Loss Table (Inverse)'!$A$4:$B$33,2)*K85/I85)) -> 0.80055 | O85: 0.80055 | P85: 34.34397926 | Q85: 21.0212352 | R85: 2 | S85: =IF(A85="","",VLOOKUP(R85,'Normal Loss Table'!$A$3:$B$32,2)*K85) -> 0 | T85: 1 | U85: 1785.886922 | V85: 0 | W85: -446.4717304 | X85: 4.37584896 | Y85: -450.8475794 | Z85: 0
A86: P 083 | B86: 1183.846154 | C86: 8.818128 | D86: 2675.057 | E86: 438.6061427 | F86: 1 | G86: 0.25 | H86: 2 | I86: 2367.692308 | J86: 1491.210846 | K86: 1336.503802 | L86: 1.115755035 | M86: 1.115755035 | N86: =IF(A86="","",1 - (VLOOKUP(M86,'Normal Loss Table (Inverse)'!$A$4:$B$33,2)*K86/I86)) -> 0.9612769951 | O86: 1138.004073 | P86: 10035.06558 | Q86: 23588.99503 | R86: 1.7716 | S86: =IF(A86="","",VLOOKUP(R86,'Normal Loss Table'!$A$3:$B$32,2)*K86) -> 0 | T86: 1183.846154 | U86: 521823.4104 | V86: 0 | W86: -130455.8526 | X86: -2629.937623 | Y86: -127825.915 | Z86: 0
A87: P 084 | B87: 1540.038462 | C87: 11.967112 | D87: 1495.823 | E87: 645.4430599 | F87: 1 | G87: 0.25 | H87: 2 | I87: 3080.076923 | J87: 0 | K87: 1790.226787 | L87: 0 | M87: 0 | N87: =IF(A87="","",1 - (VLOOKUP(M87,'Normal Loss Table (Inverse)'!$A$4:$B$33,2)*K87/I87)) -> 0.7681481718 | O87: 1182.977729 | P87: 14156.82697 | Q87: 17900.68137 | R87: 1.7205 | S87: =IF(A87="","",VLOOKUP(R87,'Normal Loss Table'!$A$3:$B$32,2)*K87) -> 0 | T87: 1540.038462 | U87: 736155.0027 | V87: 0 | W87: -184038.7507 | X87: 105.8262761 | Y87: -184144.5769 | Z87: 0
A88: P 085 | B88: 925.4423077 | C88: 48.254604 | D88: 1566.824 | E88: 626.8987914 | F88: 1 | G88: 0.25 | H88: 2 | I88: 1850.884615 | J88: 641.3816923 | K88: 1281.58014 | L88: 0.5004616352 | M88: 0.5004616352 | N88: =IF(A88="","",1 - (VLOOKUP(M88,'Normal Loss Table (Inverse)'!$A$4:$B$33,2)*K88/I88)) -> 0.8631095685 | O88: 798.7581109 | P88: 38543.75633 | Q88: 75606.47166 | R88: 1.4442 | S88: =IF(A88="","",VLOOKUP(R88,'Normal Loss Table'!$A$3:$B$32,2)*K88) -> 0 | T88: 925.4423077 | U88: 2004275.329 | V88: 0 | W88: -501068.8323 | X88: -6189.923915 | Y88: -494878.9084 | Z88: 0
A89: P 086 | B89: 285.0576923 | C89: 12.408672 | D89: 2066.918 | E89: 128.3308245 | F89: 1 | G89: 0.25 | H89: 2 | I89: 570.1153846 | J89: 1781.860308 | K89: 337.9282305 | L89: 5.272895682 | M89: 3 | N89: =IF(A89="","",1 - (VLOOKUP(M89,'Normal Loss Table (Inverse)'!$A$4:$B$33,2)*K89/I89)) -> 1 | O89: 285.0576923 | P89: 3537.187405 | Q89: 25647.70751 | R89: 1.6871 | S89: =IF(A89="","",VLOOKUP(R89,'Normal Loss Table'!$A$3:$B$32,2)*K89) -> 0 | T89: 285.0576923 | U89: 183933.7451 | V89: 0 | W89: -45983.43626 | X89: -4422.104022 | Y89: -41561.33224 | Z89: 0
A90: P 087 | B90: 383.9615385 | C90: 9.017628 | D90: 3346.308 | E90: 290.5741417 | F90: 1 | G90: 0.25 | H90: 4 | I90: 1535.846154 | J90: 2578.384923 | K90: 696.5341272 | L90: 3.701735238 | M90: 3 | N90: =IF(A90="","",1 - (VLOOKUP(M90,'Normal Loss Table (Inverse)'!$A$4:$B$33,2)*K90/I90)) -> 1 | O90: 383.9615385 | P90: 3462.42232 | Q90: 30175.76072 | R90: 2.205 | S90: =IF(A90="","",VLOOKUP(R90,'Normal Loss Table'!$A$3:$B$32,2)*K90) -> 0 | T90: 767.9230769 | U90: 180045.9606 | V90: 0 | W90: -45011.49016 | X90: -4650.183215 | Y90: -40361.30695 | Z90: 0
A91: P 088 | B91: 5.75 | C91: 39.83616 | D91: 334.768 | E91: 22.44109938 | F91: 1 | G91: 0.25 | H91: 4 | I91: 23 | J91: 323.268 | K91: 45.24902501 | L91: 7.144198132 | M91: 3 | N91: =IF(A91="","",1 - (VLOOKUP(M91,'Normal Loss Table (Inverse)'!$A$4:$B$33,2)*K91/I91)) -> 1 | O91: 5.75 | P91: 229.05792 | Q91: 13335.87161 | R91: 0.5083 | S91: =IF(A91="","",VLOOKUP(R91,'Normal Loss Table'!$A$3:$B$32,2)*K91) -> 0 | T91: 11.5 | U91: 11911.01184 | V91: 0 | W91: -2977.75296 | X91: -2575.551154 | Y91: -402.2018058 | Z91: 0
A92: P 089 | B92: 277.0769231 | C92: 38.0304 | D92: 992.642 | E92: 112.8013778 | F92: 1 | G92: 0.25 | H92: 2 | I92: 554.1538462 | J92: 715.5650769 | K92: 319.7185058 | L92: 2.238109662 | M92: 2.238109662 | N92: =IF(A92="","",1 - (VLOOKUP(M92,'Normal Loss Table (Inverse)'!$A$4:$B$33,2)*K92/I92)) -> 0.9972306448 | O92: 276.3095987 | P92: 10508.16456 | Q92: 37750.57232 | R92: 1.7333 | S92: =IF(A92="","",VLOOKUP(R92,'Normal Loss Table'!$A$3:$B$32,2)*K92) -> 0 | T92: 277.0769231 | U92: 546424.5572 | V92: 0 | W92: -136606.1393 | X92: -5442.64522 | Y92: -131163.4941 | Z92: 0
A93: P 090 | B93: 690.4038462 | C93: 5.057116 | D93: 6403.467 | E93: 560.4283817 | F93: 1 | G93: 0.25 | H93: 4 | I93: 2761.615385 | J93: 5022.659308 | K93: 1316.425978 | L93: 3.815375413 | M93: 3 | N93: =IF(A93="","",1 - (VLOOKUP(M93,'Normal Loss Table (Inverse)'!$A$4:$B$33,2)*K93/I93)) -> 1 | O93: 690.4038462 | P93: 3491.452337 | Q93: 32383.07542 | R93: 2.0978 | S93: =IF(A93="","",VLOOKUP(R93,'Normal Loss Table'!$A$3:$B$32,2)*K93) -> 0 | T93: 1380.807692 | U93: 181555.5215 | V93: 0 | W93: -45388.88038 | X93: -5080.034149 | Y93: -40308.84623 | Z93: 0
A94: P 091 | B94: 135.6923077 | C94: 43.740508 | D94: 729.904 | E94: 250.6421978 | F94: 1 | G94: 0.25 | H94: 2 | I94: 271.3846154 | J94: 594.2116923 | K94: 379.546341 | L94: 1.565584036 | M94: 1.565584036 | N94: =IF(A94="","",1 - (VLOOKUP(M94,'Normal Loss Table (Inverse)'!$A$4:$B$33,2)*K94/I94)) -> 0.9590223352 | O94: 130.1319538 | P94: 5692.037766 | Q94: 31926.37175 | R94: 0.715 | S94: =IF(A94="","",VLOOKUP(R94,'Normal Loss Table'!$A$3:$B$32,2)*K94) -> 0 | T94: 135.6923077 | U94: 295985.9638 | V94: 0 | W94: -73996.49096 | X94: -5198.224256 | Y94: -68798.2667 | Z94: 0
A95: P 092 | B95: 41.57692308 | C95: 32.1328 | D95: 534.051 | E95: 27.00061448 | F95: 1 | G95: 0.25 | H95: 4 | I95: 166.3076923 | J95: 450.8971538 | K95: 68.15257341 | L95: 6.615996011 | M95: 3 | N95: =IF(A95="","",1 - (VLOOKUP(M95,'Normal Loss Table (Inverse)'!$A$4:$B$33,2)*K95/I95)) -> 1 | O95: 41.57692308 | P95: 1335.982954 | Q95: 17160.55397 | R95: 2.4402 | S95: =IF(A95="","",VLOOKUP(R95,'Normal Loss Table'!$A$3:$B$32,2)*K95) -> 0 | T95: 83.15384615 | U95: 69471.1136 | V95: 0 | W95: -17367.7784 | X95: -2897.717613 | Y95: -14470.06079 | Z95: 0
A96: P 093 | B96: 746.0384615 | C96: 8.822232 | D96: 2879.828 | E96: 749.9026855 | F96: 1 | G96: 0.25 | H96: 2 | I96: 1492.076923 | J96: 2133.789538 | K96: 1296.64238 | L96: 1.645626868 | M96: 1.645626868 | N96: =IF(A96="","",1 - (VLOOKUP(M96,'Normal Loss Table (Inverse)'!$A$4:$B$33,2)*K96/I96)) -> 0.9798387719 | O96: 730.9974099 | P96: 6449.028742 | Q96: 25406.51074 | R96: 1.1507 | S96: =IF(A96="","",VLOOKUP(R96,'Normal Loss Table'!$A$3:$B$32,2)*K96) -> 0 | T96: 746.0384615 | U96: 335349.4946 | V96: 0 | W96: -83837.37364 | X96: -3764.957269 | Y96: -80072.41637 | Z96: 0
A97: P 094 | B97: 764.5192308 | C97: 11.658096 | D97: 1985.284 | E97: 364.8871698 | F97: 1 | G97: 0.25 | H97: 2 | I97: 1529.038462 | J97: 1220.764769 | K97: 922.3746243 | L97: 1.323502118 | M97: 1.323502118 | N97: =IF(A97="","",1 - (VLOOKUP(M97,'Normal Loss Table (Inverse)'!$A$4:$B$33,2)*K97/I97)) -> 0.9725526555 | O97: 743.5352081 | P97: 8668.204835 | Q97: 23144.63146 | R97: 1.6577 | S97: =IF(A97="","",VLOOKUP(R97,'Normal Loss Table'!$A$3:$B$32,2)*K97) -> 0 | T97: 764.5192308 | U97: 450746.6514 | V97: 0 | W97: -112686.6629 | X97: -2846.358575 | Y97: -109840.3043 | Z97: 0
A98: P 095 | B98: 242.6730769 | C98: 18.35552 | D98: 1175.118 | E98: 216.0692265 | F98: 1 | G98: 0.25 | H98: 2 | I98: 485.3461538 | J98: 932.4449231 | K98: 390.2076928 | L98: 2.389611841 | M98: 2.389611841 | N98: =IF(A98="","",1 - (VLOOKUP(M98,'Normal Loss Table (Inverse)'!$A$4:$B$33,2)*K98/I98)) -> 0.9971056787 | O98: 241.9707031 | P98: 4441.49808 | Q98: 21569.90195 | R98: 1.2438 | S98: =IF(A98="","",VLOOKUP(R98,'Normal Loss Table'!$A$3:$B$32,2)*K98) -> 0 | T98: 242.6730769 | U98: 230957.9001 | V98: 0 | W98: -57739.47504 | X98: -3423.102287 | Y98: -54316.37275 | Z98: 0
A99: P 096 | B99: 380.8269231 | C99: 17.11216 | D99: 1491.707 | E99: 416.5604125 | F99: 1 | G99: 0.25 | H99: 2 | I99: 761.6538462 | J99: 1110.880077 | K99: 701.4800781 | L99: 1.58362313 | M99: 1.58362313 | N99: =IF(A99="","",1 - (VLOOKUP(M99,'Normal Loss Table (Inverse)'!$A$4:$B$33,2)*K99/I99)) -> 0.9730148198 | O99: 370.5502399 | P99: 6340.914994 | Q99: 25526.32886 | R99: 1.0858 | S99: =IF(A99="","",VLOOKUP(R99,'Normal Loss Table'!$A$3:$B$32,2)*K99) -> 0 | T99: 380.8269231 | U99: 329727.5797 | V99: 0 | W99: -82431.89492 | X99: -3801.911523 | Y99: -78629.9834 | Z99: 0
A100: P 097 | B100: 136.4038462 | C100: 16.02384 | D100: 1325.352 | E100: 216.9399718 | F100: 1 | G100: 0.25 | H100: 4 | I100: 545.6153846 | J100: 1052.544308 | K100: 454.8162428 | L100: 2.314218818 | M100: 2.314218818 | N100: =IF(A100="","",1 - (VLOOKUP(M100,'Normal Loss Table (Inverse)'!$A$4:$B$33,2)*K100/I100)) -> 0.9969990977 | O100: 135.9945115 | P100: 2179.154294 | Q100: 21237.22839 | R100: 1.1996 | S100: =IF(A100="","",VLOOKUP(R100,'Normal Loss Table'!$A$3:$B$32,2)*K100) -> 0 | T100: 272.8076923 | U100: 113316.0233 | V100: 0 | W100: -28329.00582 | X100: -3373.160316 | Y100: -24955.8455 | Z100: 0
A101: P 098 | B101: 196.2884615 | C101: 6.03098 | D101: 3689.651 | E101: 231.5727418 | F101: 1 | G101: 0.25 | H101: 4 | I101: 785.1538462 | J101: 3297.074077 | K101: 503.0237561 | L101: 6.554509677 | M101: 3 | N101: =IF(A101="","",1 - (VLOOKUP(M101,'Normal Loss Table (Inverse)'!$A$4:$B$33,2)*K101/I101)) -> 1 | O101: 196.2884615 | P101: 1183.811786 | Q101: 22252.21139 | R101: 1.5609 | S101: =IF(A101="","",VLOOKUP(R101,'Normal Loss Table'!$A$3:$B$32,2)*K101) -> 0 | T101: 392.5769231 | U101: 61558.21286 | V101: 0 | W101: -15389.55322 | X101: -3976.917563 | Y101: -11412.63565 | Z101: 0
A102: P 099 | B102: 48.90384615 | C102: 32.1328 | D102: 655.13 | E102: 42.82534508 | F102: 1 | G102: 0.25 | H102: 4 | I102: 195.6153846 | J102: 557.3223077 | K102: 98.62873259 | L102: 5.650709413 | M102: 3 | N102: =IF(A102="","",1 - (VLOOKUP(M102,'Normal Loss Table (Inverse)'!$A$4:$B$33,2)*K102/I102)) -> 1 | O102: 48.90384615 | P102: 1571.417508 | Q102: 21051.16126 | R102: 1.9834 | S102: =IF(A102="","",VLOOKUP(R102,'Normal Loss Table'!$A$3:$B$32,2)*K102) -> 0 | T102: 97.80769231 | U102: 81713.7104 | V102: 0 | W102: -20428.4276 | X102: -3581.66525 | Y102: -16846.76235 | Z102: 0
A103: P 100 | B103: 289.9038462 | C103: 33.381024 | D103: 1173.06 | E103: 142.78041 | F103: 1 | G103: 0.25 | H103: 2 | I103: 579.8076923 | J103: 883.1561538 | K103: 353.294114 | L103: 2.499776019 | M103: 2.499776019 | N103: =IF(A103="","",1 - (VLOOKUP(M103,'Normal Loss Table (Inverse)'!$A$4:$B$33,2)*K103/I103)) -> 0.9983548095 | O103: 289.4268991 | P103: 9661.366265 | Q103: 39157.94401 | R103: 1.6411 | S103: =IF(A103="","",VLOOKUP(R103,'Normal Loss Table'!$A$3:$B$32,2)*K103) -> 0 | T103: 289.9038462 | U103: 502391.0458 | V103: 0 | W103: -125597.7614 | X103: -5896.131353 | Y103: -119701.6301 | Z103: 0
N104: =IF(A104="","",1 - (VLOOKUP(M104,'Normal Loss Table (Inverse)'!$A$4:$B$33,2)*K104/I104)) ->  | S104: =IF(A104="","",VLOOKUP(R104,'Normal Loss Table'!$A$3:$B$32,2)*K104) ->  | Z104: =IF(A104="","",0) -> 
N105: =IF(A105="","",1 - (VLOOKUP(M105,'Normal Loss Table (Inverse)'!$A$4:$B$33,2)*K105/I105)) ->  | S105: =IF(A105="","",VLOOKUP(R105,'Normal Loss Table'!$A$3:$B$32,2)*K105) -> 
N106: =IF(A106="","",1 - (VLOOKUP(M106,'Normal Loss Table (Inverse)'!$A$4:$B$33,2)*K106/I106)) ->  | S106: =IF(A106="","",VLOOKUP(R106,'Normal Loss Table'!$A$3:$B$32,2)*K106) -> 
N107: =IF(A107="","",1 - (VLOOKUP(M107,'Normal Loss Table (Inverse)'!$A$4:$B$33,2)*K107/I107)) ->  | S107: =IF(A107="","",VLOOKUP(R107,'Normal Loss Table'!$A$3:$B$32,2)*K107) -> 
N108: =IF(A108="","",1 - (VLOOKUP(M108,'Normal Loss Table (Inverse)'!$A$4:$B$33,2)*K108/I108)) ->  | S108: =IF(A108="","",VLOOKUP(R108,'Normal Loss Table'!$A$3:$B$32,2)*K108) -> 
N109: =IF(A109="","",1 - (VLOOKUP(M109,'Normal Loss Table (Inverse)'!$A$4:$B$33,2)*K109/I109)) ->  | S109: =IF(A109="","",VLOOKUP(R109,'Normal Loss Table'!$A$3:$B$32,2)*K109) -> 
N110: =IF(A110="","",1 - (VLOOKUP(M110,'Normal Loss Table (Inverse)'!$A$4:$B$33,2)*K110/I110)) ->  | S110: =IF(A110="","",VLOOKUP(R110,'Normal Loss Table'!$A$3:$B$32,2)*K110) -> 
N111: =IF(A111="","",1 - (VLOOKUP(M111,'Normal Loss Table (Inverse)'!$A$4:$B$33,2)*K111/I111)) ->  | S111: =IF(A111="","",VLOOKUP(R111,'Normal Loss Table'!$A$3:$B$32,2)*K111) -> 
N112: =IF(A112="","",1 - (VLOOKUP(M112,'Normal Loss Table (Inverse)'!$A$4:$B$33,2)*K112/I112)) ->  | S112: =IF(A112="","",VLOOKUP(R112,'Normal Loss Table'!$A$3:$B$32,2)*K112) -> 
N113: =IF(A113="","",1 - (VLOOKUP(M113,'Normal Loss Table (Inverse)'!$A$4:$B$33,2)*K113/I113)) ->  | S113: =IF(A113="","",VLOOKUP(R113,'Normal Loss Table'!$A$3:$B$32,2)*K113) -> 
N114: =IF(A114="","",1 - (VLOOKUP(M114,'Normal Loss Table (Inverse)'!$A$4:$B$33,2)*K114/I114)) ->  | S114: =IF(A114="","",VLOOKUP(R114,'Normal Loss Table'!$A$3:$B$32,2)*K114) -> 
N115: =IF(A115="","",1 - (VLOOKUP(M115,'Normal Loss Table (Inverse)'!$A$4:$B$33,2)*K115/I115)) ->  | S115: =IF(A115="","",VLOOKUP(R115,'Normal Loss Table'!$A$3:$B$32,2)*K115) -> 
N116: =IF(A116="","",1 - (VLOOKUP(M116,'Normal Loss Table (Inverse)'!$A$4:$B$33,2)*K116/I116)) ->  | S116: =IF(A116="","",VLOOKUP(R116,'Normal Loss Table'!$A$3:$B$32,2)*K116) -> 
N117: =IF(A117="","",1 - (VLOOKUP(M117,'Normal Loss Table (Inverse)'!$A$4:$B$33,2)*K117/I117)) ->  | S117: =IF(A117="","",VLOOKUP(R117,'Normal Loss Table'!$A$3:$B$32,2)*K117) -> 
N118: =IF(A118="","",1 - (VLOOKUP(M118,'Normal Loss Table (Inverse)'!$A$4:$B$33,2)*K118/I118)) ->  | S118: =IF(A118="","",VLOOKUP(R118,'Normal Loss Table'!$A$3:$B$32,2)*K118) -> 
N119: =IF(A119="","",1 - (VLOOKUP(M119,'Normal Loss Table (Inverse)'!$A$4:$B$33,2)*K119/I119)) ->  | S119: =IF(A119="","",VLOOKUP(R119,'Normal Loss Table'!$A$3:$B$32,2)*K119) -> 
N120: =IF(A120="","",1 - (VLOOKUP(M120,'Normal Loss Table (Inverse)'!$A$4:$B$33,2)*K120/I120)) ->  | S120: =IF(A120="","",VLOOKUP(R120,'Normal Loss Table'!$A$3:$B$32,2)*K120) -> 
N121: =IF(A121="","",1 - (VLOOKUP(M121,'Normal Loss Table (Inverse)'!$A$4:$B$33,2)*K121/I121)) ->  | S121: =IF(A121="","",VLOOKUP(R121,'Normal Loss Table'!$A$3:$B$32,2)*K121) -> 
N122: =IF(A122="","",1 - (VLOOKUP(M122,'Normal Loss Table (Inverse)'!$A$4:$B$33,2)*K122/I122)) ->  | S122: =IF(A122="","",VLOOKUP(R122,'Normal Loss Table'!$A$3:$B$32,2)*K122) -> 
N123: =IF(A123="","",1 - (VLOOKUP(M123,'Normal Loss Table (Inverse)'!$A$4:$B$33,2)*K123/I123)) ->  | S123: =IF(A123="","",VLOOKUP(R123,'Normal Loss Table'!$A$3:$B$32,2)*K123) -> 
N124: =IF(A124="","",1 - (VLOOKUP(M124,'Normal Loss Table (Inverse)'!$A$4:$B$33,2)*K124/I124)) ->  | S124: =IF(A124="","",VLOOKUP(R124,'Normal Loss Table'!$A$3:$B$32,2)*K124) -> 
N125: =IF(A125="","",1 - (VLOOKUP(M125,'Normal Loss Table (Inverse)'!$A$4:$B$33,2)*K125/I125)) ->  | S125: =IF(A125="","",VLOOKUP(R125,'Normal Loss Table'!$A$3:$B$32,2)*K125) -> 
N126: =IF(A126="","",1 - (VLOOKUP(M126,'Normal Loss Table (Inverse)'!$A$4:$B$33,2)*K126/I126)) ->  | S126: =IF(A126="","",VLOOKUP(R126,'Normal Loss Table'!$A$3:$B$32,2)*K126) -> 
N127: =IF(A127="","",1 - (VLOOKUP(M127,'Normal Loss Table (Inverse)'!$A$4:$B$33,2)*K127/I127)) ->  | S127: =IF(A127="","",VLOOKUP(R127,'Normal Loss Table'!$A$3:$B$32,2)*K127) -> 
N128: =IF(A128="","",1 - (VLOOKUP(M128,'Normal Loss Table (Inverse)'!$A$4:$B$33,2)*K128/I128)) ->  | S128: =IF(A128="","",VLOOKUP(R128,'Normal Loss Table'!$A$3:$B$32,2)*K128) -> 
N129: =IF(A129="","",1 - (VLOOKUP(M129,'Normal Loss Table (Inverse)'!$A$4:$B$33,2)*K129/I129)) ->  | S129: =IF(A129="","",VLOOKUP(R129,'Normal Loss Table'!$A$3:$B$32,2)*K129) -> 
N130: =IF(A130="","",1 - (VLOOKUP(M130,'Normal Loss Table (Inverse)'!$A$4:$B$33,2)*K130/I130)) ->  | S130: =IF(A130="","",VLOOKUP(R130,'Normal Loss Table'!$A$3:$B$32,2)*K130) -> 
N131: =IF(A131="","",1 - (VLOOKUP(M131,'Normal Loss Table (Inverse)'!$A$4:$B$33,2)*K131/I131)) ->  | S131: =IF(A131="","",VLOOKUP(R131,'Normal Loss Table'!$A$3:$B$32,2)*K131) -> 
I132: =IF(A132="","",H132*B132) ->  | J132: =IF(A132="","",IF(D132-(I132/2) > 0, D132-(I132/2), 0)) ->  | L132: =IF(A132="","",J132/K132) ->  | M132: =IF(A132="","",IF(L132 >3,3,L132)) ->  | N132: =IF(A132="","",1 - (VLOOKUP(M132,'Normal Loss Table (Inverse)'!$A$4:$B$33,2)*K132/I132)) ->  | O132: =IF(A132="","",B132*N132) ->  | P132: =IF(A132="","",O132*$C132) ->  | Q132: =IF(A132="","",C132*D132) ->  | R132: =IF(A132="","",ROUND((1-$Z132)*(I132/K132),4)) ->  | S132: =IF(A132="","",VLOOKUP(R132,'Normal Loss Table'!$A$3:$B$32,2)*K132) ->  | T132: =IF(A132="","",I132/2+S132) ->  | U132: =IF(A132="","",B132*C132*52*N132) ->  | W132: =IF(A132="","",(V132-U132)*G132) ->  | X132: =IF(A132="","",(T132*C132-Q132)*0.2) ->  | Y132: =IF(A132="","",W132-X132) -> 
K133: =IF(A133="","",SQRT(($H133*POWER(E133,2)) + ((B133^2)*POWER(1,2)))) ->  | N133: =IF(A133="","",1 - (VLOOKUP(M133,'Normal Loss Table (Inverse)'!$A$4:$B$33,2)*K133/I133)) ->  | S133: =IF(A133="","",VLOOKUP(R133,'Normal Loss Table'!$A$3:$B$32,2)*K133) -> 
N134: =IF(A134="","",1 - (VLOOKUP(M134,'Normal Loss Table (Inverse)'!$A$4:$B$33,2)*K134/I134)) ->  | S134: =IF(A134="","",VLOOKUP(R134,'Normal Loss Table'!$A$3:$B$32,2)*K134) -> 
N135: =IF(A135="","",1 - (VLOOKUP(M135,'Normal Loss Table (Inverse)'!$A$4:$B$33,2)*K135/I135)) ->  | S135: =IF(A135="","",VLOOKUP(R135,'Normal Loss Table'!$A$3:$B$32,2)*K135) -> 
N136: =IF(A136="","",1 - (VLOOKUP(M136,'Normal Loss Table (Inverse)'!$A$4:$B$33,2)*K136/I136)) ->  | S136: =IF(A136="","",VLOOKUP(R136,'Normal Loss Table'!$A$3:$B$32,2)*K136) ->  | Z136: =IF(A136="","",0) -> 
N137: =IF(A137="","",1 - (VLOOKUP(M137,'Normal Loss Table (Inverse)'!$A$4:$B$33,2)*K137/I137)) ->  | S137: =IF(A137="","",VLOOKUP(R137,'Normal Loss Table'!$A$3:$B$32,2)*K137) -> 
N138: =IF(A138="","",1 - (VLOOKUP(M138,'Normal Loss Table (Inverse)'!$A$4:$B$33,2)*K138/I138)) ->  | S138: =IF(A138="","",VLOOKUP(R138,'Normal Loss Table'!$A$3:$B$32,2)*K138) -> 
N139: =IF(A139="","",1 - (VLOOKUP(M139,'Normal Loss Table (Inverse)'!$A$4:$B$33,2)*K139/I139)) ->  | S139: =IF(A139="","",VLOOKUP(R139,'Normal Loss Table'!$A$3:$B$32,2)*K139) -> 
N140: =IF(A140="","",1 - (VLOOKUP(M140,'Normal Loss Table (Inverse)'!$A$4:$B$33,2)*K140/I140)) ->  | S140: =IF(A140="","",VLOOKUP(R140,'Normal Loss Table'!$A$3:$B$32,2)*K140) -> 
N141: =IF(A141="","",1 - (VLOOKUP(M141,'Normal Loss Table (Inverse)'!$A$4:$B$33,2)*K141/I141)) ->  | S141: =IF(A141="","",VLOOKUP(R141,'Normal Loss Table'!$A$3:$B$32,2)*K141) -> 
N142: =IF(A142="","",1 - (VLOOKUP(M142,'Normal Loss Table (Inverse)'!$A$4:$B$33,2)*K142/I142)) ->  | S142: =IF(A142="","",VLOOKUP(R142,'Normal Loss Table'!$A$3:$B$32,2)*K142) -> 
N143: =IF(A143="","",1 - (VLOOKUP(M143,'Normal Loss Table (Inverse)'!$A$4:$B$33,2)*K143/I143)) ->  | S143: =IF(A143="","",VLOOKUP(R143,'Normal Loss Table'!$A$3:$B$32,2)*K143) -> 
N144: =IF(A144="","",1 - (VLOOKUP(M144,'Normal Loss Table (Inverse)'!$A$4:$B$33,2)*K144/I144)) ->  | S144: =IF(A144="","",VLOOKUP(R144,'Normal Loss Table'!$A$3:$B$32,2)*K144) -> 
N145: =IF(A145="","",1 - (VLOOKUP(M145,'Normal Loss Table (Inverse)'!$A$4:$B$33,2)*K145/I145)) ->  | S145: =IF(A145="","",VLOOKUP(R145,'Normal Loss Table'!$A$3:$B$32,2)*K145) -> 
N146: =IF(A146="","",1 - (VLOOKUP(M146,'Normal Loss Table (Inverse)'!$A$4:$B$33,2)*K146/I146)) ->  | S146: =IF(A146="","",VLOOKUP(R146,'Normal Loss Table'!$A$3:$B$32,2)*K146) -> 
N147: =IF(A147="","",1 - (VLOOKUP(M147,'Normal Loss Table (Inverse)'!$A$4:$B$33,2)*K147/I147)) ->  | S147: =IF(A147="","",VLOOKUP(R147,'Normal Loss Table'!$A$3:$B$32,2)*K147) -> 
N148: =IF(A148="","",1 - (VLOOKUP(M148,'Normal Loss Table (Inverse)'!$A$4:$B$33,2)*K148/I148)) ->  | S148: =IF(A148="","",VLOOKUP(R148,'Normal Loss Table'!$A$3:$B$32,2)*K148) -> 
N149: =IF(A149="","",1 - (VLOOKUP(M149,'Normal Loss Table (Inverse)'!$A$4:$B$33,2)*K149/I149)) ->  | S149: =IF(A149="","",VLOOKUP(R149,'Normal Loss Table'!$A$3:$B$32,2)*K149) -> 
N150: =IF(A150="","",1 - (VLOOKUP(M150,'Normal Loss Table (Inverse)'!$A$4:$B$33,2)*K150/I150)) ->  | S150: =IF(A150="","",VLOOKUP(R150,'Normal Loss Table'!$A$3:$B$32,2)*K150) -> 
N151: =IF(A151="","",1 - (VLOOKUP(M151,'Normal Loss Table (Inverse)'!$A$4:$B$33,2)*K151/I151)) ->  | S151: =IF(A151="","",VLOOKUP(R151,'Normal Loss Table'!$A$3:$B$32,2)*K151) -> 
N152: =IF(A152="","",1 - (VLOOKUP(M152,'Normal Loss Table (Inverse)'!$A$4:$B$33,2)*K152/I152)) ->  | S152: =IF(A152="","",VLOOKUP(R152,'Normal Loss Table'!$A$3:$B$32,2)*K152) -> 
N153: =IF(A153="","",1 - (VLOOKUP(M153,'Normal Loss Table (Inverse)'!$A$4:$B$33,2)*K153/I153)) ->  | S153: =IF(A153="","",VLOOKUP(R153,'Normal Loss Table'!$A$3:$B$32,2)*K153) -> 
N154: =IF(A154="","",1 - (VLOOKUP(M154,'Normal Loss Table (Inverse)'!$A$4:$B$33,2)*K154/I154)) ->  | S154: =IF(A154="","",VLOOKUP(R154,'Normal Loss Table'!$A$3:$B$32,2)*K154) -> 
N155: =IF(A155="","",1 - (VLOOKUP(M155,'Normal Loss Table (Inverse)'!$A$4:$B$33,2)*K155/I155)) ->  | S155: =IF(A155="","",VLOOKUP(R155,'Normal Loss Table'!$A$3:$B$32,2)*K155) -> 
N156: =IF(A156="","",1 - (VLOOKUP(M156,'Normal Loss Table (Inverse)'!$A$4:$B$33,2)*K156/I156)) ->  | S156: =IF(A156="","",VLOOKUP(R156,'Normal Loss Table'!$A$3:$B$32,2)*K156) -> 
N157: =IF(A157="","",1 - (VLOOKUP(M157,'Normal Loss Table (Inverse)'!$A$4:$B$33,2)*K157/I157)) ->  | S157: =IF(A157="","",VLOOKUP(R157,'Normal Loss Table'!$A$3:$B$32,2)*K157) -> 
N158: =IF(A158="","",1 - (VLOOKUP(M158,'Normal Loss Table (Inverse)'!$A$4:$B$33,2)*K158/I158)) ->  | S158: =IF(A158="","",VLOOKUP(R158,'Normal Loss Table'!$A$3:$B$32,2)*K158) -> 
N159: =IF(A159="","",1 - (VLOOKUP(M159,'Normal Loss Table (Inverse)'!$A$4:$B$33,2)*K159/I159)) ->  | S159: =IF(A159="","",VLOOKUP(R159,'Normal Loss Table'!$A$3:$B$32,2)*K159) -> 
N160: =IF(A160="","",1 - (VLOOKUP(M160,'Normal Loss Table (Inverse)'!$A$4:$B$33,2)*K160/I160)) ->  | S160: =IF(A160="","",VLOOKUP(R160,'Normal Loss Table'!$A$3:$B$32,2)*K160) -> 
N161: =IF(A161="","",1 - (VLOOKUP(M161,'Normal Loss Table (Inverse)'!$A$4:$B$33,2)*K161/I161)) ->  | S161: =IF(A161="","",VLOOKUP(R161,'Normal Loss Table'!$A$3:$B$32,2)*K161) -> 
N162: =IF(A162="","",1 - (VLOOKUP(M162,'Normal Loss Table (Inverse)'!$A$4:$B$33,2)*K162/I162)) ->  | S162: =IF(A162="","",VLOOKUP(R162,'Normal Loss Table'!$A$3:$B$32,2)*K162) -> 
N163: =IF(A163="","",1 - (VLOOKUP(M163,'Normal Loss Table (Inverse)'!$A$4:$B$33,2)*K163/I163)) ->  | S163: =IF(A163="","",VLOOKUP(R163,'Normal Loss Table'!$A$3:$B$32,2)*K163) -> 
N164: =IF(A164="","",1 - (VLOOKUP(M164,'Normal Loss Table (Inverse)'!$A$4:$B$33,2)*K164/I164)) ->  | S164: =IF(A164="","",VLOOKUP(R164,'Normal Loss Table'!$A$3:$B$32,2)*K164) -> 
N165: =IF(A165="","",1 - (VLOOKUP(M165,'Normal Loss Table (Inverse)'!$A$4:$B$33,2)*K165/I165)) ->  | S165: =IF(A165="","",VLOOKUP(R165,'Normal Loss Table'!$A$3:$B$32,2)*K165) -> 
N166: =IF(A166="","",1 - (VLOOKUP(M166,'Normal Loss Table (Inverse)'!$A$4:$B$33,2)*K166/I166)) ->  | S166: =IF(A166="","",VLOOKUP(R166,'Normal Loss Table'!$A$3:$B$32,2)*K166) -> 
N167: =IF(A167="","",1 - (VLOOKUP(M167,'Normal Loss Table (Inverse)'!$A$4:$B$33,2)*K167/I167)) ->  | S167: =IF(A167="","",VLOOKUP(R167,'Normal Loss Table'!$A$3:$B$32,2)*K167) -> 
N168: =IF(A168="","",1 - (VLOOKUP(M168,'Normal Loss Table (Inverse)'!$A$4:$B$33,2)*K168/I168)) ->  | S168: =IF(A168="","",VLOOKUP(R168,'Normal Loss Table'!$A$3:$B$32,2)*K168) ->  | Z168: =IF(A168="","",0) -> 
N169: =IF(A169="","",1 - (VLOOKUP(M169,'Normal Loss Table (Inverse)'!$A$4:$B$33,2)*K169/I169)) ->  | S169: =IF(A169="","",VLOOKUP(R169,'Normal Loss Table'!$A$3:$B$32,2)*K169) -> 
N170: =IF(A170="","",1 - (VLOOKUP(M170,'Normal Loss Table (Inverse)'!$A$4:$B$33,2)*K170/I170)) ->  | S170: =IF(A170="","",VLOOKUP(R170,'Normal Loss Table'!$A$3:$B$32,2)*K170) -> 
N171: =IF(A171="","",1 - (VLOOKUP(M171,'Normal Loss Table (Inverse)'!$A$4:$B$33,2)*K171/I171)) ->  | S171: =IF(A171="","",VLOOKUP(R171,'Normal Loss Table'!$A$3:$B$32,2)*K171) -> 
N172: =IF(A172="","",1 - (VLOOKUP(M172,'Normal Loss Table (Inverse)'!$A$4:$B$33,2)*K172/I172)) ->  | S172: =IF(A172="","",VLOOKUP(R172,'Normal Loss Table'!$A$3:$B$32,2)*K172) -> 
N173: =IF(A173="","",1 - (VLOOKUP(M173,'Normal Loss Table (Inverse)'!$A$4:$B$33,2)*K173/I173)) ->  | S173: =IF(A173="","",VLOOKUP(R173,'Normal Loss Table'!$A$3:$B$32,2)*K173) -> 
N174: =IF(A174="","",1 - (VLOOKUP(M174,'Normal Loss Table (Inverse)'!$A$4:$B$33,2)*K174/I174)) ->  | S174: =IF(A174="","",VLOOKUP(R174,'Normal Loss Table'!$A$3:$B$32,2)*K174) -> 
N175: =IF(A175="","",1 - (VLOOKUP(M175,'Normal Loss Table (Inverse)'!$A$4:$B$33,2)*K175/I175)) ->  | S175: =IF(A175="","",VLOOKUP(R175,'Normal Loss Table'!$A$3:$B$32,2)*K175) -> 
N176: =IF(A176="","",1 - (VLOOKUP(M176,'Normal Loss Table (Inverse)'!$A$4:$B$33,2)*K176/I176)) ->  | S176: =IF(A176="","",VLOOKUP(R176,'Normal Loss Table'!$A$3:$B$32,2)*K176) -> 
N177: =IF(A177="","",1 - (VLOOKUP(M177,'Normal Loss Table (Inverse)'!$A$4:$B$33,2)*K177/I177)) ->  | S177: =IF(A177="","",VLOOKUP(R177,'Normal Loss Table'!$A$3:$B$32,2)*K177) -> 
N178: =IF(A178="","",1 - (VLOOKUP(M178,'Normal Loss Table (Inverse)'!$A$4:$B$33,2)*K178/I178)) ->  | S178: =IF(A178="","",VLOOKUP(R178,'Normal Loss Table'!$A$3:$B$32,2)*K178) -> 
N179: =IF(A179="","",1 - (VLOOKUP(M179,'Normal Loss Table (Inverse)'!$A$4:$B$33,2)*K179/I179)) ->  | S179: =IF(A179="","",VLOOKUP(R179,'Normal Loss Table'!$A$3:$B$32,2)*K179) -> 
N180: =IF(A180="","",1 - (VLOOKUP(M180,'Normal Loss Table (Inverse)'!$A$4:$B$33,2)*K180/I180)) ->  | S180: =IF(A180="","",VLOOKUP(R180,'Normal Loss Table'!$A$3:$B$32,2)*K180) -> 
N181: =IF(A181="","",1 - (VLOOKUP(M181,'Normal Loss Table (Inverse)'!$A$4:$B$33,2)*K181/I181)) ->  | S181: =IF(A181="","",VLOOKUP(R181,'Normal Loss Table'!$A$3:$B$32,2)*K181) -> 
N182: =IF(A182="","",1 - (VLOOKUP(M182,'Normal Loss Table (Inverse)'!$A$4:$B$33,2)*K182/I182)) ->  | S182: =IF(A182="","",VLOOKUP(R182,'Normal Loss Table'!$A$3:$B$32,2)*K182) -> 
N183: =IF(A183="","",1 - (VLOOKUP(M183,'Normal Loss Table (Inverse)'!$A$4:$B$33,2)*K183/I183)) ->  | S183: =IF(A183="","",VLOOKUP(R183,'Normal Loss Table'!$A$3:$B$32,2)*K183) -> 
N184: =IF(A184="","",1 - (VLOOKUP(M184,'Normal Loss Table (Inverse)'!$A$4:$B$33,2)*K184/I184)) ->  | S184: =IF(A184="","",VLOOKUP(R184,'Normal Loss Table'!$A$3:$B$32,2)*K184) -> 
N185: =IF(A185="","",1 - (VLOOKUP(M185,'Normal Loss Table (Inverse)'!$A$4:$B$33,2)*K185/I185)) ->  | S185: =IF(A185="","",VLOOKUP(R185,'Normal Loss Table'!$A$3:$B$32,2)*K185) -> 
N186: =IF(A186="","",1 - (VLOOKUP(M186,'Normal Loss Table (Inverse)'!$A$4:$B$33,2)*K186/I186)) ->  | S186: =IF(A186="","",VLOOKUP(R186,'Normal Loss Table'!$A$3:$B$32,2)*K186) -> 
N187: =IF(A187="","",1 - (VLOOKUP(M187,'Normal Loss Table (Inverse)'!$A$4:$B$33,2)*K187/I187)) ->  | S187: =IF(A187="","",VLOOKUP(R187,'Normal Loss Table'!$A$3:$B$32,2)*K187) -> 
N188: =IF(A188="","",1 - (VLOOKUP(M188,'Normal Loss Table (Inverse)'!$A$4:$B$33,2)*K188/I188)) ->  | S188: =IF(A188="","",VLOOKUP(R188,'Normal Loss Table'!$A$3:$B$32,2)*K188) -> 
N189: =IF(A189="","",1 - (VLOOKUP(M189,'Normal Loss Table (Inverse)'!$A$4:$B$33,2)*K189/I189)) ->  | S189: =IF(A189="","",VLOOKUP(R189,'Normal Loss Table'!$A$3:$B$32,2)*K189) -> 
N190: =IF(A190="","",1 - (VLOOKUP(M190,'Normal Loss Table (Inverse)'!$A$4:$B$33,2)*K190/I190)) ->  | S190: =IF(A190="","",VLOOKUP(R190,'Normal Loss Table'!$A$3:$B$32,2)*K190) -> 
N191: =IF(A191="","",1 - (VLOOKUP(M191,'Normal Loss Table (Inverse)'!$A$4:$B$33,2)*K191/I191)) ->  | S191: =IF(A191="","",VLOOKUP(R191,'Normal Loss Table'!$A$3:$B$32,2)*K191) -> 
N192: =IF(A192="","",1 - (VLOOKUP(M192,'Normal Loss Table (Inverse)'!$A$4:$B$33,2)*K192/I192)) ->  | S192: =IF(A192="","",VLOOKUP(R192,'Normal Loss Table'!$A$3:$B$32,2)*K192) -> 
N193: =IF(A193="","",1 - (VLOOKUP(M193,'Normal Loss Table (Inverse)'!$A$4:$B$33,2)*K193/I193)) ->  | S193: =IF(A193="","",VLOOKUP(R193,'Normal Loss Table'!$A$3:$B$32,2)*K193) -> 
N194: =IF(A194="","",1 - (VLOOKUP(M194,'Normal Loss Table (Inverse)'!$A$4:$B$33,2)*K194/I194)) ->  | S194: =IF(A194="","",VLOOKUP(R194,'Normal Loss Table'!$A$3:$B$32,2)*K194) -> 
N195: =IF(A195="","",1 - (VLOOKUP(M195,'Normal Loss Table (Inverse)'!$A$4:$B$33,2)*K195/I195)) ->  | S195: =IF(A195="","",VLOOKUP(R195,'Normal Loss Table'!$A$3:$B$32,2)*K195) -> 
I196: =IF(A196="","",H196*B196) ->  | J196: =IF(A196="","",IF(D196-(I196/2) > 0, D196-(I196/2), 0)) ->  | L196: =IF(A196="","",J196/K196) ->  | M196: =IF(A196="","",IF(L196 >3,3,L196)) ->  | N196: =IF(A196="","",1 - (VLOOKUP(M196,'Normal Loss Table (Inverse)'!$A$4:$B$33,2)*K196/I196)) ->  | O196: =IF(A196="","",B196*N196) ->  | P196: =IF(A196="","",O196*$C196) ->  | Q196: =IF(A196="","",C196*D196) ->  | R196: =IF(A196="","",ROUND((1-$Z196)*(I196/K196),4)) ->  | S196: =IF(A196="","",VLOOKUP(R196,'Normal Loss Table'!$A$3:$B$32,2)*K196) ->  | T196: =IF(A196="","",I196/2+S196) ->  | U196: =IF(A196="","",B196*C196*52*N196) ->  | W196: =IF(A196="","",(V196-U196)*G196) ->  | X196: =IF(A196="","",(T196*C196-Q196)*0.2) ->  | Y196: =IF(A196="","",W196-X196) -> 
K197: =IF(A197="","",SQRT(($H197*POWER(E197,2)) + ((B197^2)*POWER(1,2)))) ->  | N197: =IF(A197="","",1 - (VLOOKUP(M197,'Normal Loss Table (Inverse)'!$A$4:$B$33,2)*K197/I197)) ->  | S197: =IF(A197="","",VLOOKUP(R197,'Normal Loss Table'!$A$3:$B$32,2)*K197) -> 
N198: =IF(A198="","",1 - (VLOOKUP(M198,'Normal Loss Table (Inverse)'!$A$4:$B$33,2)*K198/I198)) ->  | S198: =IF(A198="","",VLOOKUP(R198,'Normal Loss Table'!$A$3:$B$32,2)*K198) -> 
N199: =IF(A199="","",1 - (VLOOKUP(M199,'Normal Loss Table (Inverse)'!$A$4:$B$33,2)*K199/I199)) ->  | S199: =IF(A199="","",VLOOKUP(R199,'Normal Loss Table'!$A$3:$B$32,2)*K199) -> 
N200: =IF(A200="","",1 - (VLOOKUP(M200,'Normal Loss Table (Inverse)'!$A$4:$B$33,2)*K200/I200)) ->  | S200: =IF(A200="","",VLOOKUP(R200,'Normal Loss Table'!$A$3:$B$32,2)*K200) ->  | Z200: =IF(A200="","",0) -> 
N201: =IF(A201="","",1 - (VLOOKUP(M201,'Normal Loss Table (Inverse)'!$A$4:$B$33,2)*K201/I201)) ->  | S201: =IF(A201="","",VLOOKUP(R201,'Normal Loss Table'!$A$3:$B$32,2)*K201) -> 
N202: =IF(A202="","",1 - (VLOOKUP(M202,'Normal Loss Table (Inverse)'!$A$4:$B$33,2)*K202/I202)) ->  | S202: =IF(A202="","",VLOOKUP(R202,'Normal Loss Table'!$A$3:$B$32,2)*K202) -> 
... 122 more rows

Sheet Normal Loss Table
A1: f(k) | B1: k
A3: 0 | B3: 3
A4: 0.0007 | B4: 2.8
A5: 0.001 | B5: 2.7
A6: 0.0014 | B6: 2.6
A7: 0.002 | B7: 2.5
A8: 0.0027 | B8: 2.4
A9: 0.0036 | B9: 2.3
A10: 0.0048 | B10: 2.2
A11: 0.0064 | B11: 2.1
A12: 0.0074 | B12: 2
A13: 0.0084 | B13: 1.9
A14: 0.011 | B14: 1.8
A15: 0.0142 | B15: 1.7
A16: 0.0232 | B16: 1.6
A17: 0.0293 | B17: 1.5
A18: 0.0366 | B18: 1.4
A19: 0.0455 | B19: 1.3
A20: 0.0561 | B20: 1.2
A21: 0.0686 | B21: 1.1
A22: 0.0833 | B22: 1
A23: 0.1004 | B23: 0.9
A24: 0.1202 | B24: 0.8
A25: 0.1428 | B25: 0.7
A26: 0.1686 | B26: 0.6
A27: 0.1977 | B27: 0.5
A28: 0.2304 | B28: 0.4
A29: 0.2667 | B29: 0.3
A30: 0.3068 | B30: 0.2
A31: 0.3509 | B31: 0.1
A32: 0.3989 | B32: 0

Sheet Normal Loss Table (Inverse)
A1: k | B1: f(k)
A3: Column1 | B3: Column2
A4: 0 | B4: 0.3989
A5: 0.1 | B5: 0.3509
A6: 0.2 | B6: 0.3068
A7: 0.3 | B7: 0.2667
A8: 0.4 | B8: 0.2304
A9: 0.5 | B9: 0.1977
A10: 0.6 | B10: 0.1686
A11: 0.7 | B11: 0.1428
A12: 0.8 | B12: 0.1202
A13: 0.9 | B13: 0.1004
A14: 1 | B14: 0.0833
A15: 1.1 | B15: 0.0686
A16: 1.2 | B16: 0.0561
A17: 1.3 | B17: 0.0455
A18: 1.4 | B18: 0.0366
A19: 1.5 | B19: 0.0293
A20: 1.6 | B20: 0.0232
A21: 1.7 | B21: 0.0142
A22: 1.8 | B22: 0.011
A23: 1.9 | B23: 0.0084
A24: 2 | B24: 0.0074
A25: 2.1 | B25: 0.0064
A26: 2.2 | B26: 0.0048
A27: 2.3 | B27: 0.0036
A28: 2.4 | B28: 0.0027
A29: 2.5 | B29: 0.002
A30: 2.6 | B30: 0.0014
A31: 2.7 | B31: 0.001
A32: 2.8 | B32: 0.0007
A33: 3 | B33: 0
